Cogmind - Beta 16 @@@ ROGUE MODE // 2025.11.12 @ 20:24:30 Player: Dwarfinator Result: Assimilated 0b10! Performance ------------- Evolutions (9) 4500 Regions Visited (41) 8200 Robots Destroyed (349) 1745 Value Destroyed (28629) 28629 Prototype IDs (369) 7380 Alien Tech Used (0) 0 Bonus (69852) 69852 TOTAL SCORE: 120306 Bonus ------- High Alert Combat Kills 420 Follower Combat Kills 29655 Destroyed Unchained 2000 Entered Garrisons 3400 Used RIF Installer 11000 Met MAIN.C 5000 Destroyed MAIN.C Shell 5000 Destroyed MAIN.C 10000 Used 0b10 Conduit 2000 Win 3000 Friendly Fire -1623 Cogmind --------- Core Integrity 1223/1600 Matter 300/300 Energy 98/100 System Corruption 15% Temperature Cool (0) Movement Core (50) Location 0b10 Command Parts ------- > --- POWER (1) -------- (None) > --- PROPULSION (3) --- Heavy Shield Leg Experimental Biometal Leg > --- UTILITY (18) ----- Advanced Coolant Injector Experimental Optical Array Core Analyzer Experimental Weapon Cycler Graphene Brace (fused) Relay Coupler [C] (76) Relay Coupler [Sentry] (99) Relay Coupler [Demolisher] (34) Relay Coupler [Specialist] (73) Relay Coupler [Behemoth] (27) Relay Coupler [Proto] (30) Relay Coupler [Proto] (4) Relay Coupler [Proto] (71) > --- WEAPON (3) ------- (None) > --- INVENTORY (5) ---- Enhanced Biometal Leg Centrium Light Armor Plating Relay Coupler [C] (60) Enhanced Nova Cannon Improved Plasma Cutter Peak State ------------ > --- POWER ------------ Hybrid Antimatter Reactor > --- PROPULSION ------- Heavy Shield Leg Experimental Biometal Leg > --- UTILITY ---------- High-capacity Storage Unit Experimental Optical Array Core Analyzer Experimental Weapon Cycler Experimental Reaction Control System Centrium Light Armor Plating Centrium Light Armor Plating Graphene Brace Relay Coupler [C] Relay Coupler [C] Relay Coupler [C] Relay Coupler [Sentry] Relay Coupler [Demolisher] Relay Coupler [Specialist] Relay Coupler [Behemoth] Relay Coupler [Proto] Relay Coupler [Proto] Relay Coupler [Proto] > --- WEAPON ----------- Experimental Thermic Cannon Advanced Remote Datajack Plasma Lance > --- INVENTORY -------- Enhanced Biometal Leg High-density Centrium Leg Advanced Coolant Injector Experimental Coolant Injector Advanced Energy Well Experimental Energy Well Advanced Matter Compressor Advanced Point Defense System Relay Coupler [NC] Relay Coupler [C] Relay Coupler [Hunter] Enhanced Nova Cannon Helical Railgun Helical Railgun Improved Plasma Cutter Plasma Lance [Rating: 201] Favorites ----------- Power Hybrid Antimatter Reactor Engine Cooled Ion Engine Power Core Light Nuclear Core Reactor Hybrid Antimatter Reactor Propulsion Improved Aluminum Leg Leg Improved Aluminum Leg Flight Unit Improved Flight Unit Utility Relay Coupler [Sentry] Device Experimental Reaction Control System Storage High-capacity Storage Unit Processor Core Analyzer Hackware Relay Coupler [Sentry] Protection Centrium Light Armor Plating Weapon Advanced Remote Datajack Energy Gun Improved Arc Projector Energy Cannon Enhanced Nova Cannon Ballistic Gun Hypervelocity Railgun Ballistic Cannon Light Cannon Launcher Mini Grenade Launcher Special Weapon Advanced Remote Datajack Impact Weapon Power Maul Slashing Weapon Katana Piercing Weapon Heavy Pick Special Melee Weapon Datajack Build | -11 -10 -10 -9 -9 -9 -8 -8 -8 -8 -7 -7 -6 -6 -6 -6 -5 -5 -5 -5 -5 -5 -5 -5 -5 -5 -5 -5 -4 -4 -4 -4 -3 -3 -2 -2 -2 -2 -1 -1 -1 -1 ------- Run | Yrd Mat Min Mat Sto Gar Mat Gar Mat Gar Fac Gar Fac Gar Fac Gar Fac Was Fac Gar Fac Gar Fac Gar Fac Gar Fac Gar Fac Gar Fac Gar Res Gar Res Gar Res Gar Acc Gar Acc Com Slots Evolved 18 | . . . 2 . . 2 . . . 2 . 2 . . . 2 . . . . . . . . . . . 2 . . . 2 . 2 . . . 2 . . . Power . | . . . . . . . . . . . . . . . . . . . . . . . . . . . . . . . . . . . . . . . . . . Propulsion 1 | . . . 1 . . . . . . . . . . . . . . . . . . . . . . . . . . . . . . . . . . . . . . Utility 16 | . . . . . . 2 . . . 2 . 2 . . . 2 . . . . . . . . . . . 2 . . . 2 . 2 . . . 2 . . . Weapon 1 | . . . 1 . . . . . . . . . . . . . . . . . . . . . . . . . . . . . . . . . . . . . . Parts Attached 414 | 7 11 2 30 21 3 24 22 17 8 8 22 3 15 7 9 1 6 3 11 12 6 4 16 5 19 11 11 5 22 . 8 3 14 2 16 2 8 3 5 5 7 Power 22 | 1 1 . 5 4 . . 2 1 1 . 2 . 3 . . . . . . 1 . . . . . . . . 1 . . . . . . . . . . . . Engine 12 | 1 . . 4 4 . . 2 . . . 1 . . . . . . . . . . . . . . . . . . . . . . . . . . . . . . Core 6 | . 1 . 1 . . . . 1 1 . 1 . 1 . . . . . . . . . . . . . . . . . . . . . . . . . . . . Reactor 4 | . . . . . . . . . . . . . 2 . . . . . . 1 . . . . . . . . 1 . . . . . . . . . . . . Propulsion 59 | 2 2 . 10 4 1 2 5 4 1 . 2 . 2 4 1 . 1 . 2 1 . . 1 . 1 1 1 1 4 . 1 . . . 3 1 . . . 1 . Treads . | . . . . . . . . . . . . . . . . . . . . . . . . . . . . . . . . . . . . . . . . . . Leg 57 | 2 2 . 9 3 1 2 5 4 1 . 2 . 2 4 1 . 1 . 2 1 . . 1 . 1 1 1 1 4 . 1 . . . 3 1 . . . 1 . Wheel . | . . . . . . . . . . . . . . . . . . . . . . . . . . . . . . . . . . . . . . . . . . Hover . | . . . . . . . . . . . . . . . . . . . . . . . . . . . . . . . . . . . . . . . . . . Flight 2 | . . . 1 1 . . . . . . . . . . . . . . . . . . . . . . . . . . . . . . . . . . . . . Utility 229 | 2 1 2 5 4 1 14 6 9 3 6 14 3 8 3 7 1 4 3 8 3 5 2 14 5 13 6 9 4 11 . 5 2 11 2 7 1 7 3 5 4 6 Device 57 | 1 1 1 1 2 . 4 1 . . . 6 . . 2 . . 3 . . 1 . . 2 1 3 5 1 2 4 . . 1 3 1 4 . 3 1 1 2 . Storage 10 | 1 . 1 2 . 1 1 . . . . 1 . . 1 . . . . . . . . . 1 . . . . . . . . . . . . . 1 . . . Processor 15 | . . . . . . 1 . 2 1 2 . 1 . . . 1 1 . . . . . 1 . 1 . 1 . . . . . . . 1 1 . . 1 . . Hackware 125 | . . . . . . 6 5 6 2 3 6 2 7 . 7 . . 2 8 1 5 2 10 3 6 1 7 2 6 . 4 1 7 1 2 . 4 1 3 2 3 Protection 22 | . . . 2 2 . 2 . 1 . 1 1 . 1 . . . . 1 . 1 . . 1 . 3 . . . 1 . 1 . 1 . . . . . . . 3 Artifact . | . . . . . . . . . . . . . . . . . . . . . . . . . . . . . . . . . . . . . . . . . . Weapon 104 | 2 7 . 10 9 1 8 9 3 3 2 4 . 2 . 1 . 1 . 1 7 1 2 1 . 5 4 1 . 6 . 2 1 3 . 6 . 1 . . . 1 Energy Gun 4 | . 2 . . . . . . . . . . . 1 . . . . . . . . . . . . . . . . . . . . . 1 . . . . . . Energy Cannon 15 | . 1 . 2 . . . 1 . 1 . . . . . . . . . . 1 . . . . 3 . . . 2 . . 1 1 . 2 . . . . . . Ballistic Gun 39 | 2 2 . 7 7 . 6 5 3 1 1 . . . . . . . . 1 3 . . . . . 1 . . . . . . . . . . . . . . . Ballistic Cannon 7 | . 1 . . . . . . . 1 . 3 . . . 1 . . . . . . . . . 1 . . . . . . . . . . . . . . . . Launcher 5 | . . . . . 1 . . . . . . . . . . . 1 . . 1 . . . . . . 1 . 1 . . . . . . . . . . . . Special Weapon 20 | . 1 . . . . 1 . . . . 1 . . . . . . . . 2 1 2 1 . . 2 . . 2 . 2 . 1 . 3 . 1 . . . . Impact Weapon 4 | . . . 1 . . . . . . 1 . . . . . . . . . . . . . . 1 1 . . . . . . . . . . . . . . . Slashing Weapon 6 | . . . . 1 . 1 3 . . . . . . . . . . . . . . . . . . . . . 1 . . . . . . . . . . . . Piercing Weapon 3 | . . . . . . . . . . . . . 1 . . . . . . . . . . . . . . . . . . . 1 . . . . . . . 1 Special Melee Weapon 1 | . . . . 1 . . . . . . . . . . . . . . . . . . . . . . . . . . . . . . . . . . . . . Unidentified Prototypes 26 | . . 1 2 4 . . . . . . 1 . . . . . 2 . . 6 1 . . . . . . . . . . . . 1 8 . . . . . . Corrupted Parts 1 | . . . . . . . . . . . . . . . . . . . . . . . . . . . . . . . . . . . 1 . . . . . . System Corruption 7 | . . . . . . . . . . . . . . . . . . . . . . . . . . . . . . . . . . . 7 . . . . . . Parts Lost 55 | . . . 3 4 1 2 11 4 . . 1 . 1 . 1 . . . . 1 . . . . 6 1 2 . 5 . 2 . 1 . 1 . . . . 1 7 Power 4 | . . . 1 . . . 2 1 . . . . . . . . . . . . . . . . . . . . . . . . . . . . . . . . . Propulsion 10 | . . . 1 1 . 1 3 1 . . . . . . . . . . . . . . . . 1 . . . 1 . . . . . . . . . . 1 . Utility 32 | . . . 1 3 1 . 4 2 . . . . 1 . 1 . . . . 1 . . . . 5 . 2 . 2 . 2 . 1 . 1 . . . . . 5 Weapon 9 | . . . . . . 1 2 . . . 1 . . . . . . . . . . . . . . 1 . . 2 . . . . . . . . . . . 2 Highest Loss Streak 7 | . . . 2 1 1 2 7 3 . . 1 . 1 . 1 . . . . 1 . . . . 4 1 2 . 2 . 2 . 1 . 1 . . . . 1 4 To Critical Strikes 1 | . . . . . . . . . . . . . . . . . . . . . . . . . . . . . . . . . . . . . . . . 1 . Average Backups 16 | 4 8 7 12 14 14 14 14 14 14 14 14 15 13 14 13 13 16 15 17 19 19 19 19 19 19 18 18 17 17 17 17 17 17 16 17 18 17 17 18 17 14 Power . | . . . . . . . . . . . . . . . . . . . . . . . . . . . 1 1 . . . . . . . . . . . . . Propulsion 1 | 2 2 3 2 4 3 2 2 2 3 2 2 2 2 2 1 1 1 1 3 2 2 2 2 2 1 1 . . 1 2 2 1 1 1 1 1 1 1 1 . . Utility 9 | . 1 1 5 4 3 5 6 7 7 8 8 9 9 9 9 9 11 11 10 10 10 11 12 10 10 9 10 9 10 10 10 10 10 9 10 11 12 12 13 13 9 Weapon 4 | 1 2 2 4 5 6 5 4 3 3 3 2 3 2 2 2 2 2 2 2 4 4 4 4 5 4 4 4 4 3 4 3 4 5 4 4 4 3 2 2 2 2 Tool/Special . | . . . . . . . . . . . . . . . . . . . . . . . . . . . . . . . . . . . . . . . . . . Unused Backups 118 | . 7 . 13 2 4 5 4 2 2 2 7 . 3 . 1 . 1 . 3 5 1 . 2 1 7 1 10 4 2 1 2 1 5 . . 2 5 . 2 . 11 Power 3 | . 1 . 1 . . . . . 1 . . . . . . . . . . . . . . . . . . . . . . . . . . . . . . . . Propulsion 20 | . 4 . 1 . 1 1 2 1 1 . . . . . . . . . . 2 . . . . 3 . . 1 . . 1 . . . . . . . . . 2 Utility 75 | . 1 . 6 2 1 2 1 . . 2 7 . 3 . 1 . 1 . 3 2 1 . 2 . 2 1 9 3 2 1 1 1 5 . . 1 5 . 2 . 7 Weapon 18 | . 1 . 5 . 2 2 1 1 . . . . . . . . . . . . . . . 1 2 . . . . . . . . . . 1 . . . . 2 Tool/Special 2 | . . . . . . . . . . . . . . . . . . . . 1 . . . . . . 1 . . . . . . . . . . . . . . Average Slot Usage (%) 96 | . 100 100 94 99 99 97 88 95 97 98 95 77 96 99 99 93 91 100 100 99 100 99 100 100 96 93 93 93 95 100 93 94 94 93 94 95 94 93 95 95 92 Engine 1 | . 10 . 2 8 11 9 8 4 . . . . . . . . . . . . . . . . . . . . . . . . . . . . . . . . . Core 1 | . 3 14 3 2 . . . 3 9 7 6 6 2 . . . . . . . . . . . . . . . . . . . . . . . . . . . . Reactor 3 | . . . . . . . . . . . . . 3 6 6 5 5 5 5 5 5 5 5 5 5 5 5 5 5 5 5 4 4 4 4 4 4 4 4 4 3 Leg 17 | . 28 28 32 33 33 27 26 27 27 23 23 20 20 19 20 17 17 17 17 17 17 17 17 17 14 11 11 10 12 15 10 9 9 8 8 8 8 8 8 8 8 Device 8 | . 14 14 8 9 10 11 6 . . 6 4 6 2 10 6 6 11 12 13 6 5 2 1 1 8 5 11 11 11 10 9 17 15 14 10 8 9 13 12 8 12 Storage 6 | . 14 14 11 11 11 9 9 9 15 7 10 6 6 6 6 5 5 5 5 5 5 5 5 5 5 5 5 5 5 5 5 4 4 4 4 4 4 4 4 4 3 Processor 2 | . . . . . . 2 . 4 8 11 1 3 . . . 3 4 . . . . . . . 3 5 5 5 5 5 5 4 4 4 5 8 8 8 8 8 8 Hackware 27 | . . . . . . 7 6 15 8 15 26 26 39 34 32 29 29 31 26 34 34 37 39 43 31 33 28 33 34 36 36 34 36 40 43 43 42 40 43 47 41 Protection 4 | . . . 1 1 . 3 3 4 1 2 1 . 2 1 5 5 1 7 11 10 11 11 10 7 6 5 5 5 5 5 4 4 4 4 4 4 4 4 3 4 4 Energy Cannon 1 | . 6 14 1 1 . . . . 1 . 2 . 4 . . . . . . . . . . . . 1 . . 1 . 4 . . 1 . . . . . . 2 Ballistic Gun 6 | . 9 . 30 30 24 14 15 13 4 . . . . . . . . . . 4 7 8 5 4 5 9 5 7 1 . . . . . . . . . . . . Special Weapon 5 | . 3 . . . . 3 4 7 9 7 4 . 5 6 6 5 5 5 5 6 5 5 5 5 4 3 5 4 5 10 5 7 9 6 6 8 7 7 7 7 4 Piercing Weapon 1 | . . . . . . . . . . . . . . 6 5 5 1 5 5 3 2 2 4 4 3 . . . . . . . . 4 3 4 3 4 3 3 2 Peak Build Rating 201 | 7 9 17 21 25 30 36 35 39 43 52 67 71 74 74 81 81 93 90 99 108 106 106 112 115 123 124 126 129 124 113 121 134 139 153 158 157 162 176 186 186 201 Average Rating 92 | 5 7 9 14 21 23 29 27 34 40 49 50 65 67 72 74 76 78 87 93 98 101 102 107 109 111 117 118 122 113 112 118 131 133 149 154 156 158 169 179 180 186 On Entrance 89 | . 7 9 10 20 23 30 26 35 36 40 51 60 69 71 72 71 81 90 87 97 97 100 106 112 108 116 123 110 124 113 113 117 133 137 149 157 156 159 173 186 181 Avg Prop Armor Cover (%) 42 | . . . . . . . . . . . . . . . . . . . . . . . . . . . . . . . . . . . . . . . . . 42 Naked Turns . | . . . . . . . . . . . . . . . . . . . . . . . . . . . . . . . . . . . . . . . . . . Heaviest Build 98 | 15 17 17 44 41 41 47 52 45 50 47 65 53 65 54 77 59 71 64 83 84 82 79 79 89 92 98 88 89 84 75 84 86 96 89 90 71 88 97 94 93 85 Greatest Support 90 | 20 20 20 39 39 39 39 39 47 48 48 65 53 58 58 60 60 68 68 84 84 84 84 84 84 88 88 88 88 90 76 90 90 90 90 90 88 88 88 88 88 88 Greatest Overweight (x) 2 | 1 . . 1 1 1 1 1 1 1 . 1 . 1 1 1 . 1 . . . . . . 1 1 1 . 1 1 . . . 1 . . . . 1 1 1 2 Average Overweight (x) . | . . . . . . . . . . . . . . . . . . . . . . . . . . . . . . . . . . . . . . . . . . Largest Inventory Capacity 25 | 8 8 25 15 15 15 15 15 15 15 15 20 15 15 15 15 15 20 15 20 20 20 20 20 20 20 20 20 20 20 20 20 20 20 20 20 20 20 20 20 20 20 Average Capacity 17 | 7 8 8 12 15 15 15 15 15 15 15 15 15 15 15 15 15 18 15 17 20 20 20 20 20 20 20 20 20 20 20 20 20 20 20 20 20 20 20 20 20 19 Most Carried 20 | 8 8 8 15 15 15 15 15 15 15 15 20 15 15 15 15 15 20 15 20 20 20 20 20 20 20 20 20 20 20 20 20 20 20 20 20 20 20 20 20 20 18 Average Carried 17 | 4 7 7 12 14 14 14 14 13 14 14 15 14 14 15 14 14 17 14 17 19 19 19 19 19 19 19 19 19 19 19 19 19 19 18 19 19 19 19 19 19 15 Final Capacity 20 | 8 8 8 15 15 15 15 15 15 15 15 15 15 15 15 15 15 15 15 20 20 20 20 20 20 20 20 20 20 20 20 20 20 20 20 20 20 20 20 20 20 5 Final Carried 20 | 8 8 8 15 14 15 15 14 15 15 15 15 15 15 15 15 15 15 15 20 19 20 20 20 20 20 20 20 20 20 20 20 19 20 19 20 20 20 20 20 18 5 Class Distribution -------------------- 52% | Botlord-Mutant 13% | Commander-Mutant 8% | Botlord-Tank 7% | Mutant 5% | Scavenger-Gunner 3% | Bothacker-Mutant Dominant Class ---------------- Mutant | -10/Materials Mutant | -10/Mines Scavenger-Gunner | -9/Materials Scavenger-Gunner | -9/Storage Commander-Mutant | -9/Garrison Mutant | -8/Materials Commander-Mutant | -8/Garrison Commander-Tank | -8/Materials Bothacker-Mutant | -8/Garrison Bothacker-Mutant | -7/Factory Botlord-Mutant | -7/Garrison Botlord-Mutant | -6/Factory Botlord-Mutant | -6/Garrison Botlord-Mutant | -6/Factory Botlord-Mutant | -6/Garrison Botlord-Mutant | -5/Factory Botlord-Mutant | -5/Waste Botlord-Mutant | -5/Factory Commander-Mutant | -5/Garrison Botlord-Mutant | -5/Factory Botlord-Tank | -5/Garrison Botlord-Tank | -5/Factory Botlord-Mutant | -5/Garrison Botlord-Mutant | -5/Factory Botlord-Mutant | -5/Garrison Botlord-Tank | -5/Factory Botlord-Mutant | -5/Garrison Botlord-Tank | -4/Factory Botlord-Mutant | -4/Garrison Botlord-Mutant | -4/Factory Botlord-Mutant | -4/Garrison Botlord-Mutant | -3/Research Botlord-Mutant | -3/Garrison Commander-Mutant | -2/Research Botlord-Mutant | -2/Garrison Botlord-Mutant | -2/Research Botlord-Mutant | -2/Garrison Botlord-Mutant | -1/Access Botlord-Mutant | -1/Garrison Commander-Mutant | -1/Access Botlord-Mutant | -1/Command Resources | -11 -10 -10 -9 -9 -9 -8 -8 -8 -8 -7 -7 -6 -6 -6 -6 -5 -5 -5 -5 -5 -5 -5 -5 -5 -5 -5 -5 -4 -4 -4 -4 -3 -3 -2 -2 -2 -2 -1 -1 -1 -1 ----------- Run | Yrd Mat Min Mat Sto Gar Mat Gar Mat Gar Fac Gar Fac Gar Fac Gar Fac Was Fac Gar Fac Gar Fac Gar Fac Gar Fac Gar Fac Gar Fac Gar Res Gar Res Gar Res Gar Acc Gar Acc Com Matter Collected 27033 | 330 284 90 1331 1655 353 971 1217 615 191 13 949 46 438 62 545 75 120 . 460 874 782 677 975 768 1178 2068 1151 736 1133 . 493 288 1017 211 695 95 986 650 1022 1053 436 Remotely 92 | . . . . . . . . . . . . . . . . . . . . . . . . . . . . . . . . . 92 . . . . . . . . Salvage Created 14843 | 162 506 96 1472 1641 571 672 834 425 100 . 569 44 286 18 234 . . . 122 527 149 619 302 400 558 935 794 312 258 . 240 328 339 65 419 . 160 107 338 161 80 Parts 845 | 14 27 12 109 108 34 39 45 20 2 . 26 1 8 3 9 . . . 7 23 6 43 22 16 38 39 54 14 22 . 9 3 13 4 21 . 13 11 17 12 1 Haulers Intercepted 16 | . 1 . 5 4 . 2 . 2 . . . . . . . . . . . . . 1 . . . . . . . . . 1 . . . . . . . . . Recyclers Shooed 15 | . 3 . 1 4 . . . 1 . . . . . . . . . . . 2 . 3 . . . 1 . . . . . . . . . . . . . . . Parts Field Recycled . | . . . . . . . . . . . . . . . . . . . . . . . . . . . . . . . . . . . . . . . . . . Retrieved Matter . | . . . . . . . . . . . . . . . . . . . . . . . . . . . . . . . . . . . . . . . . . . Parts Self-Destructed . | . . . . . . . . . . . . . . . . . . . . . . . . . . . . . . . . . . . . . . . . . . Prevented . | . . . . . . . . . . . . . . . . . . . . . . . . . . . . . . . . . . . . . . . . . . Parts Restored . | . . . . . . . . . . . . . . . . . . . . . . . . . . . . . . . . . . . . . . . . . . Kills | -11 -10 -10 -9 -9 -9 -8 -8 -8 -8 -7 -7 -6 -6 -6 -6 -5 -5 -5 -5 -5 -5 -5 -5 -5 -5 -5 -5 -4 -4 -4 -4 -3 -3 -2 -2 -2 -2 -1 -1 -1 -1 ------- Run | Yrd Mat Min Mat Sto Gar Mat Gar Mat Gar Fac Gar Fac Gar Fac Gar Fac Was Fac Gar Fac Gar Fac Gar Fac Gar Fac Gar Fac Gar Fac Gar Res Gar Res Gar Res Gar Acc Gar Acc Com Combat Hostiles Destroyed 217 | . 8 9 27 28 14 12 16 2 3 . 9 2 3 . 1 . . . . 2 1 4 5 2 6 6 15 2 14 . 2 . 5 . 8 . 2 . 5 2 2 Melee 10 | . . . . . 1 1 . 1 . . 1 . . . 1 . . . . . . . 1 1 . . . . . . . . 1 . 1 . . . 1 . . Guns 119 | . 5 . 25 27 10 7 9 1 1 . . . . . . . . . . 2 1 4 4 1 6 4 9 2 1 . . . . . . . . . . . . Cannons 36 | . 3 9 1 1 . . . . 2 . 3 2 3 . . . . . . . . . . . . 1 . . 3 . 1 . 1 . 1 . 1 . . 2 2 AOE 46 | . . . 1 . 3 4 7 . . . 3 . . . . . . . . . . . . . . 1 6 . 9 . . . 1 . 6 . 1 . 4 . . Classes Destroyed 23 | 2 4 1 4 1 1 1 . 1 . . 1 . 1 . . . . . . 1 . 1 . . 1 1 . . 1 . . . . . 1 . . . . . . Worker 10 | . . . . 1 . 1 . 1 . . . . . . . . . . . . . 1 . . . 3 . . . . . 1 . . . . . . . 2 . Builder 19 | . . . 2 1 . 1 . . . . . . . 1 . . . . . 2 . 6 . . . 2 . . . . . 1 . . . . . 2 . 1 . Tunneler 9 | 4 . . . 2 . 2 . . . . . . . . . . . . . . . . . 1 . . . . . . . . . . . . . . . . . Hauler 16 | . 1 . 5 4 . 2 . 2 . . . . . . . . . . . . . 1 . . . . . . . . . 1 . . . . . . . . . Recycler 12 | 1 1 . 1 1 . 1 . 1 . . . . . . . . . . . 1 . . . 1 . 3 . . . . . 1 . . . . . . . . . Mechanic 1 | . . . . . . . . 1 . . . . . . . . . . . . . . . . . . . . . . . . . . . . . . . . . Operator 4 | . 2 . 2 . . . . . . . . . . . . . . . . . . . . . . . . . . . . . . . . . . . . . . Turret 6 | . . . . . . . . . . . . . . . . . . . . . . . . . . 6 . . . . . . . . . . . . . . . Watcher 15 | . 2 . 5 2 . . 1 1 . . 1 . . . . . . . 1 1 . . . . . . . 1 . . . . . . . . . . . . . Swarmer 62 | . . 9 10 3 4 4 . . . . 4 . 2 . 1 . . . . . 1 1 . . 1 . 8 1 5 . . . . . . . 3 . 5 . . Cutter 4 | . . . . . . . . . . . . . . . . . . . . . . . . . . . . . 4 . . . . . . . . . . . . Saboteur 2 | . . . . . . . . . . . . . . . . . . . . . . . . . . . . . . . . . . . 2 . . . . . . Grunt 67 | . 8 . 6 11 8 3 11 1 1 . 2 . . . 4 . . . . . 2 1 . 1 2 . . 1 . . 1 1 1 . 1 . . . 1 . . Brawler 6 | . . . 1 1 1 . . . 1 . . . . . . . . . . . . 1 . . 1 . . . . . . . . . . . . . . . . Duelist 8 | . . . 1 2 . 1 2 1 . . . 1 . . . . . . . . . . . . . . . . . . . . . . . . . . . . . Sentry 36 | . . . 9 11 . 3 3 1 . . 2 . . . . . . . . . . . . 2 . 1 . . . . . . 2 . 1 . . . 1 . . Demolisher 1 | . . . . . . . . . . . . . . . . . . . . 1 . . . . . . . . . . . . . . . . . . . . . Specialist 9 | . . . . . . 1 . . . . . . . . . . . . . 1 . . . . . . 1 2 . . . . . . 3 . . . 1 . . Hunter 13 | . . . . . . . . . . . 1 . 2 . . . . . . . . 2 3 . . 1 . . . . . . . 1 1 . . 1 . 1 . Programmer 39 | . . . . . 3 . . . 1 . 1 1 1 . . . . . . . . . 2 . 4 4 11 . 5 . 1 . 2 . . . 1 . . 1 1 Heavy 1 | . . . . . . . . . . . . . . . . . . . . . . 1 . . . . . . . . . . . . . . . . . . . Behemoth 2 | . . . . . . . . . . . . . . . . . . . . . . . . . 1 . . . . . 1 . . . . . . . . . . Combat Programmer 1 | . . . . . . . . . . . . . . . . . . . . . . . . . . . . . . . . . . . . . . . . . 1 Executioner 1 | . . . . . . . . . . . . . 1 . . . . . . . . . . . . . . . . . . . . . . . . . . . . Surgeon 1 | . . . . . . . . . . . . . . . . . . . . 1 . . . . . . . . . . . . . . . . . . . . . Thug 4 | . . . . . . . . . . . . . 1 . . . . . 1 2 . . . . . . . . . . . . . . . . . . . . . Best Kill Streak 10 | 2 3 3 5 4 5 4 5 3 2 . 3 2 1 1 1 . . . 1 4 1 5 2 1 3 4 10 2 10 . 1 3 1 . 6 . 1 1 4 2 1 Combat Bots Only 10 | . 2 3 4 4 5 4 5 1 2 . 3 2 1 . 1 . . . . 1 1 1 2 1 3 2 10 2 10 . 1 . 1 . 6 . 1 . 4 1 1 Max Kills in Single Turn 4 | 1 1 1 2 2 3 3 2 2 1 . 2 1 1 1 1 . . . 1 3 1 2 1 1 1 2 2 1 4 . 1 1 1 1 4 . 1 1 3 2 1 Gunslinging 1 | . . . . 1 1 . . . . . . . . . . . . . . . . . . . . . 1 . . . . . . . . . . . . . . Exploded 4 | . . . 1 . 3 3 2 . . . 2 . . . . . . . . . . . . . . 1 2 . 4 . . . 1 . 4 . 1 . 2 . . Melee 1 | . . . . . 1 1 . 1 . . 1 . . . 1 . . . . . . . 1 1 . . . . . . . . 1 . 1 . . . 1 . . Uniques/NPCs Destroyed 4 | . . . . . . . . . . . . . . . . . . . . . . . . . . . . . . . . . . 1 . . . 1 . . 2 CL-0N3 (-2/Research) DW-4LL (-1/Access) MAIN.C Shell (-1/Command) MAIN.C (-1/Command) Combat | -11 -10 -10 -9 -9 -9 -8 -8 -8 -8 -7 -7 -6 -6 -6 -6 -5 -5 -5 -5 -5 -5 -5 -5 -5 -5 -5 -5 -4 -4 -4 -4 -3 -3 -2 -2 -2 -2 -1 -1 -1 -1 -------- Run | Yrd Mat Min Mat Sto Gar Mat Gar Mat Gar Fac Gar Fac Gar Fac Gar Fac Was Fac Gar Fac Gar Fac Gar Fac Gar Fac Gar Fac Gar Fac Gar Res Gar Res Gar Res Gar Acc Gar Acc Com Hostile Shots Fired 1370 | . 34 27 114 123 32 66 113 24 9 . 91 . 33 . 11 . . . 5 17 26 19 17 13 41 44 92 114 73 . 32 7 12 9 13 3 23 15 17 37 64 Missed 470 | . 7 8 24 25 7 28 25 7 2 . 38 . 13 . 5 . . . 1 7 10 5 7 5 14 16 43 59 25 . 14 2 6 3 5 . 11 6 7 12 23 Intercepted 8 | . . . . . . . . . . . . . . . . . . . . . . . . . . 2 . . . . 1 . . 1 . . . . . 1 3 Deflected 1 | . . . . . . . . . . . . . . . . . . . . . . . . . . . 1 . . . . . . . . . . . . . . Hits 900 | . 27 19 90 98 25 38 88 17 7 . 53 . 20 . 6 . . . 4 10 16 14 10 8 27 28 49 55 48 . 18 5 6 6 8 3 12 9 10 25 41 Melee 34 | . . . 11 4 . . 10 . . . . . . . . . . . . . . . . . 4 . 2 . 3 . . . . . . . . . . . . Projectile 866 | . 27 19 79 94 25 38 78 17 7 . 53 . 20 . 6 . . . 4 10 16 14 10 8 23 28 47 55 45 . 18 5 6 6 8 3 12 9 10 25 41 AOE 32 | . . . . . . . . . . . . . . . . . . . 1 7 . . 2 1 2 . 2 . 3 . 3 . . . . . 2 1 . 1 7 Critical Strikes 51 | . 3 . 1 5 . 2 4 2 . . 2 . 1 . . . . . . . 2 . 1 1 3 7 4 1 4 . 1 . 1 . . . . . . 1 5 Actively Blocked 10 | . . . . . . . 1 . . . . . . . . . . . . . . . . . . . 1 . 1 . 1 . 1 . . . . . . . 5 Part Disruptions 6 | . . . . . . . . . . . 1 . . . . . . . . 1 . . . . . . 1 1 . . . . . . . . . . . . 2 Damage Taken 16638 | . 363 108 1382 1315 253 465 1745 420 113 . 579 10 302 . 204 68 . . 173 504 280 331 246 229 553 685 957 491 1009 . 446 82 139 84 324 78 220 134 145 450 1751 Core 1864 | . 36 24 93 105 47 36 176 47 33 . 68 5 29 . . . . . 64 72 42 58 25 83 38 50 41 45 103 . 105 . 8 . 13 13 28 . 27 96 254 Absorbed by Shields 3951 | . . 45 . 145 91 79 108 . . . . . . . 73 23 . . 16 50 156 217 112 144 366 135 96 144 179 . 160 65 122 79 229 13 173 143 150 466 172 Redirected to Shielding 207 | . . . . . . 40 46 . . . . . . . . . . . 18 18 6 5 . 18 56 . . . . . . . . . . . . . . . . Ignored by Resistances 420 | . . . . . . . . . . . 68 . . . . . . . . 76 . . . . . 3 135 5 93 . 31 . 9 . . . . . . . . Regen/Repaired (Parts) 1671 | . . . 163 . . 208 . 183 . 31 . . . 66 . . 111 27 50 41 152 91 . 109 . 132 . . . . . . . . 56 . . . . . 251 Core Remaining (%) 77 | 100 . 76 . . 38 . . . 46 . 90 . . . 96 . . . . . . . . . . . 52 . . . 78 . 99 . . . 96 . . . 76 Volleys Fired 1926 | 10 48 18 89 106 27 68 80 42 18 8 56 2 37 16 47 4 14 7 33 73 51 63 76 35 60 115 60 55 64 . 41 39 102 28 42 8 67 14 86 82 35 Largest 3 | 2 2 2 3 3 3 3 3 3 2 1 2 1 1 1 1 1 1 1 1 3 2 2 2 1 2 3 3 3 2 . 1 1 1 1 1 1 1 1 1 1 1 Hottest 214 | 40 100 100 121 121 75 75 75 84 90 44 134 70 90 5 70 5 65 5 65 160 80 80 80 90 120 200 120 120 214 . 120 120 120 120 94 10 120 10 120 120 120 Shots Fired 2700 | 20 90 31 255 268 61 113 142 59 20 8 62 2 37 16 47 4 14 7 33 94 66 83 89 36 88 168 96 77 68 . 43 39 102 28 42 8 67 14 86 81 36 Gun 1238 | 20 66 . 235 237 56 76 99 34 5 . . . 4 . 3 . 14 . 6 38 30 46 27 6 53 84 56 35 8 . . . . . . . . . . . . Cannon 334 | . 18 26 20 31 3 1 4 . 8 3 43 2 12 . 10 . . . . 3 . . . 2 4 31 . 4 18 . 20 3 11 7 3 . 2 . 1 24 20 Launcher 50 | . . . . . 2 2 12 . . . 6 . . . . . . . . 2 . . 1 . . 1 3 . 5 . . . 2 . 2 . 3 . 4 2 3 Special 1078 | . 6 5 . . . 34 27 25 7 5 13 . 21 16 34 4 . 7 27 51 36 37 61 28 31 52 37 38 37 . 23 36 89 21 37 8 62 14 81 55 13 Kinetic 1234 | 20 39 13 235 237 56 76 99 34 8 3 10 2 4 . 10 . . . 5 38 30 46 27 6 53 84 56 35 8 . . . . . . . . . . . . Thermal 288 | . 15 18 20 31 3 1 4 . 5 . 33 . 8 . . . . . . 3 . . . 2 4 31 . 4 17 . 20 3 11 7 . . 2 . 1 25 20 Explosive 46 | . . . . . 2 2 12 . . . 6 . . . . . . . . . . . . . . . 3 . 5 . . . 2 . 2 . 3 . 4 2 3 Electromagnetic 66 | . 36 . . . . . . . . . . . 4 . 3 . 14 . 1 2 . . 1 . . 1 . . 1 . . . . . 3 . . . . . . Robot Hit Streak 34 | 8 8 7 12 26 24 10 16 7 17 2 15 2 4 2 13 2 4 3 10 8 8 10 34 8 15 10 15 16 19 . 11 11 29 6 19 3 14 14 23 20 4 Robot Miss Streak 7 | 3 4 1 7 2 4 6 2 3 1 6 5 . 2 3 2 1 1 2 1 5 4 3 4 2 3 6 3 2 4 . 3 3 1 1 2 2 2 1 1 3 3 Penetration Max 3 | . . . . . . . . 1 . . . . . . . . . . . 1 1 3 . . 2 1 1 1 . . . . . . . . . . . . . Secondary Targets 14 | . . . 1 1 2 2 1 . . . . . . . . . . . . . . . 1 . 3 . 3 . . . . . . . . . . . . . . Max Gunslinging Chain 1 | . . . 1 1 1 1 1 . . . . . . . . . . . . . . . 1 . 1 . 1 . . . . . . . . . . . . . . Shots Hit Robots 1880 | 13 54 15 148 183 37 77 107 42 14 4 48 2 28 11 34 3 10 4 26 56 45 61 68 32 64 82 75 52 46 . 33 36 92 21 34 8 51 16 75 48 25 Core Hits 550 | 6 23 10 59 66 20 25 47 10 3 1 23 1 7 1 4 . . . 2 24 10 25 6 8 15 36 33 12 16 . 2 1 4 1 14 . 7 2 12 6 8 Critical Kills 42 | 1 . . . . . . . . . . 1 . . . . . . . . 2 2 5 3 1 5 6 10 3 2 . 1 . . . . . . . . . . Critical Parts Destroyed 83 | . . . 1 1 . . . . . . 2 . 2 . . . . . . 4 4 9 6 . 14 15 13 8 1 . . 2 1 . . . . . . . . Critical Strikes 142 | 1 . . 1 1 . . 1 . . . 3 . 2 . 2 . . . . 6 6 16 10 1 22 21 23 11 3 . 1 2 1 1 1 1 . . . . 5 Burn 5 | . . . . . . . . . . . . . . . . . . . . . . . . . . . . . . . . . . . . . . . . . 5 Meltdown 3 | . . . . . . . . . . . 1 . . . . . . . . . . . . . . . . . 1 . 1 . . . . . . . . . . Destroy 120 | 1 . . 1 1 . . . . . . . . . . . . . . . 6 6 16 10 1 22 20 23 11 2 . . . . . . . . . . . . Smash 8 | . . . . . . . . . . . 2 . 2 . . . . . . . . . . . . 1 . . . . . 2 1 . . . . . . . . Sever 1 | . . . . . . . 1 . . . . . . . . . . . . . . . . . . . . . . . . . . . . . . . . . . Impale 5 | . . . . . . . . . . . . . . . 2 . . . . . . . . . . . . . . . . . . 1 1 1 . . . . . Melee Attacks 1199 | . . . 6 5 110 27 61 9 6 3 40 . 36 8 30 2 . . 108 7 18 21 68 45 108 29 48 6 41 . 54 23 84 25 30 5 33 8 35 20 40 Impact 327 | . . . 6 . . . . . . . 40 . 28 . . . . . . . . . . . 11 29 48 6 41 . 54 23 41 . . . . . . . . Slashing 220 | . . . . 4 110 27 61 9 6 3 . . . . . . . . . . . . . . . . . . . . . . . . . . . . . . . Piercing 651 | . . . . . . . . . . . . . 8 8 30 2 . . 108 7 18 21 68 45 97 . . . . . . . 43 25 30 5 33 8 35 20 40 Sneak Attacks 91 | . . . . 2 2 6 1 2 . . 4 . 6 3 7 . . . 1 . 2 6 1 2 5 5 3 3 . . 2 4 6 2 2 3 2 3 5 1 . Combat Hostiles 1 | . . . . . . . . . . . 1 . . . . . . . . . . . . . . . . . . . . . . . . . . . . . . Follow-up Attacks . | . . . . . . . . . . . . . . . . . . . . . . . . . . . . . . . . . . . . . . . . . . Damage Inflicted 34567 | 158 899 329 2455 3162 1047 1433 2703 650 209 39 2121 183 1039 232 753 . 85 . 142 1102 344 831 274 264 715 1697 1406 555 1592 . 771 433 856 350 1277 279 1025 326 1314 695 822 Guns 11490 | 158 579 . 2149 2914 639 755 1014 480 56 . . . . . . . 85 . 35 274 218 344 182 26 385 376 500 263 58 . . . . . . . . . . . . Cannons 5419 | . 225 287 89 100 . . . . 153 39 1208 183 246 . 333 . . . . . . . . . . 277 . . 359 . 547 40 192 129 45 . 117 . 60 340 450 Explosions 8161 | . 76 . 152 . 282 259 993 . . . 277 . . . . . . . . 820 . . 40 . . 564 577 . 1175 . . . 190 . 1051 . 664 . 793 116 132 Melee 8875 | . . . 58 65 126 389 655 155 . . 636 . 793 232 420 . . . 107 . 126 397 52 198 330 409 329 292 . . 224 393 474 221 181 279 244 326 461 64 239 Ramming 622 | . 19 42 7 83 . 30 41 15 . . . . . . . . . . . 8 . 90 . 40 . 71 . . . . . . . . . . . . . 175 1 Kinetic 12361 | 158 363 117 2149 2914 639 755 1014 480 93 39 327 183 136 . 333 . . . 35 274 218 344 182 26 385 376 500 263 58 . . . . . . . . . . . . Thermal 4254 | . 186 170 89 100 . . . . 116 . 881 . 110 . . . . . . 91 . . . . . 277 . . 359 . 547 40 192 129 . . 117 . 60 340 450 Explosive 7039 | . . . 152 . 282 259 993 . . . 277 . . . . . . . . 75 . . . . . 303 577 . 1175 . . . 190 . 1051 . 664 . 793 116 132 Electromagnetic 1416 | . 331 . . . . . . . . . . . . . . . 85 . . 654 . . 40 . . 261 . . . . . . . . 45 . . . . . . Impact 3440 | . . . 58 . . . . . . . 636 . 625 . . . . . . . . . . . . 409 329 292 . . 224 393 474 . . . . . . . . Slashing 1390 | . . . . 65 126 389 655 155 . . . . . . . . . . . . . . . . . . . . . . . . . . . . . . . . . Piercing 4045 | . . . . . . . . . . . . . 168 232 420 . . . 107 . 126 397 52 198 330 . . . . . . . . 221 181 279 244 326 461 64 239 Highest Corruption 15 | . . . . . 2 . 8 12 12 . 5 . . . 1 . . . . 1 3 3 3 4 11 15 9 2 8 8 11 . 1 . 8 8 10 1 1 7 15 Average Corruption 5 | . . . . . 1 . 8 9 4 . 4 . . . 1 . . . . 1 2 3 3 3 10 12 7 1 6 8 10 . 1 . 3 8 9 1 1 5 9 Corruption Purged 16 | . . . . . . . . . . . . . . . . . . . . . . . . 4 . 12 . . . . . . . . . . . . . . . Corruption Blocked 1 | . . . . . . . . . . . . . . . . . . . . . . . 1 . . . . . . . . . . . . . . . . . . Effects 690 | . . . . . 4 . 42 29 15 . 25 . . . 1 . . . . 6 13 26 28 13 55 71 54 1 46 2 58 . 12 . 18 9 52 . 15 51 44 Message Errors 163 | . . . . . . . 12 9 5 . 4 . . . . . . . . 2 4 7 8 1 12 9 13 . 7 1 20 . 4 . 3 4 11 . 1 15 11 Matter Fused 169 | . . . . . . . 12 3 2 . 10 . . . 1 . . . . . 4 6 6 2 15 18 17 1 9 . 17 . 2 . 6 1 14 . 1 13 9 Heat Flow Errors 88 | . . . . . 1 . 3 2 . . 2 . . . . . . . . 1 . 3 2 2 7 16 10 . 8 1 7 . 2 . 3 1 6 . 2 4 5 Energy Discharges 82 | . . . . . 2 . 3 3 2 . 4 . . . . . . . . . 2 5 3 1 5 8 2 . 13 . 6 . 3 . 1 . 4 . 4 5 6 Parts Rejected 9 | . . . . . . . . . . . . . . . . . . . . . . . . . 1 1 . . 2 . . . . . . . 2 . 1 . 2 Parts Fused 11 | . . . . . . . . 1 . . . . . . . . . . . . . 2 . . 2 3 . . . . 1 . . . . . . . . 1 1 Data Loss (minor) 79 | . . . . . 1 . 6 5 3 . 3 . . . . . . . . 2 1 1 5 4 6 2 5 . 3 . 2 . 1 . 2 2 10 . 3 5 7 Data Loss (major) 36 | . . . . . . . 2 3 . . . . . . . . . . . 1 1 2 1 2 3 2 3 . 1 . 2 . . . 1 1 4 . 3 3 1 Misfires 24 | . . . . . . . 2 1 1 . 1 . . . . . . . . . . . 2 1 4 6 3 . . . 2 . . . . . . . . . 1 Alerts 17 | . . . . . . . . . 1 . 1 . . . . . . . . . 1 . . . . 3 . . 2 . 1 . . . 2 . 1 . . 4 1 Misdirections 1 | . . . . . . . . . . . . . . . . . . . . . . . . . . 1 . . . . . . . . . . . . . . . Weapon Failures 11 | . . . . . . . 2 2 1 . . . . . . . . . . . . . 1 . . 2 1 . 1 . . . . . . . . . . 1 . Overload Shots . | . . . . . . . . . . . . . . . . . . . . . . . . . . . . . . . . . . . . . . . . . . Overflow Damage 2709 | . . . 38 . 3 70 111 18 31 . 249 63 332 94 173 . . . . 29 . 86 . . 71 266 158 52 104 . 23 250 102 87 29 . 68 77 73 18 34 Projectiles 327 | . . . . . . . . . 31 . 42 63 11 . 25 . . . . . . . . . . 45 . . 25 . 12 . . 28 . . . . 45 . . Explosions 399 | . . . 38 . . 23 63 . . . . . . . . . . . . 29 . . . . . . 42 . 79 . . . . . 29 . 68 . 28 . . Melee 1983 | . . . . . 3 47 48 18 . . 207 . 321 94 148 . . . . . . 86 . . 71 221 116 52 . . 11 250 102 59 . . . 77 . 18 34 Knockbacks 23 | . . 1 1 2 . 1 . 1 1 1 2 . 2 . . . . . . . . . . . . 1 2 3 . . 2 1 . . . . . . . 2 . Impact 19 | . . . 1 2 . 1 . 1 . . 2 . 2 . . . . . . . . . . . . 1 2 2 . . 2 1 . . . . . . . 2 . Kinetic 3 | . . 1 . . . . . . 1 1 . . . . . . . . . . . . . . . . . . . . . . . . . . . . . . . Secondary 1 | . . . . . . . . . . . . . . . . . . . . . . . . . . . . 1 . . . . . . . . . . . . . Self-Inflicted Damage 277 | . . . 98 . 34 . 41 . . . . . . . . . . . . 64 . . . . . . . . . . . . . . . . . . . . 40 Shots 10 | . . . 1 . 1 . 1 . . . . . . . . . . . . 6 . . . . . . . . . . . . . . . . . . . . 1 Rammed . | . . . . . . . . . . . . . . . . . . . . . . . . . . . . . . . . . . . . . . . . . . Targets Rammed 77 | . 5 8 4 16 . 5 8 3 . . . . . . . . . . . 1 . 8 . 3 . 6 . . . . . . . . . . . . . 9 1 Kicked 77 | . 5 8 4 16 . 5 8 3 . . . . . . . . . . . 1 . 8 . 3 . 6 . . . . . . . . . . . . . 9 1 Crushed . | . . . . . . . . . . . . . . . . . . . . . . . . . . . . . . . . . . . . . . . . . . Highest Temperature 279 | . 216 180 279 191 143 77 199 201 126 . 276 20 160 . 52 . . . 4 205 5 258 259 223 261 267 249 217 259 224 228 139 202 108 241 230 246 . 210 210 221 Average Temperature 69 | . 63 70 47 45 40 35 38 58 43 . 100 12 48 . 23 . . . 2 56 5 106 118 74 87 75 98 84 107 116 96 76 70 47 77 131 103 . 69 57 94 Received Heat Transfer 2796 | . 264 . 246 439 40 171 589 81 36 . 30 . 42 . 29 . . . 51 22 49 47 46 36 16 202 35 54 103 . 22 10 6 . 16 . 25 . 8 . 81 Effects 9 | . . . 2 . . . . . . . 1 . . . . . . . . . . . . . . 3 . 2 1 . . . . . . . . . . . . Energy Bleed 3 | . . . 2 . . . . . . . . . . . . . . . . . . . . . . . . . 1 . . . . . . . . . . . . Interference 6 | . . . . . . . . . . . 1 . . . . . . . . . . . . . . 3 . 2 . . . . . . . . . . . . . Siege Activations . | . . . . . . . . . . . . . . . . . . . . . . . . . . . . . . . . . . . . . . . . . . Martial Activations . | . . . . . . . . . . . . . . . . . . . . . . . . . . . . . . . . . . . . . . . . . . Shielding Activations 2 | . . . . . . . . . . . . . . . . . . . . . . . . . . . 2 . . . . . . . . . . . . . . Total Turns 36 | . . . . . . . . . . . . . . . . . . . . . . . . . . . 36 . . . . . . . . . . . . . . Longest Duration 23 | . . . . . . . . . . . . . . . . . . . . . . . . . . . 23 . . . . . . . . . . . . . . Robots Disrupted . | . . . . . . . . . . . . . . . . . . . . . . . . . . . . . . . . . . . . . . . . . . Combat Hostiles . | . . . . . . . . . . . . . . . . . . . . . . . . . . . . . . . . . . . . . . . . . . Robots Corrupted 15 | . . . . . . 1 . . . . 2 . 2 . . . . . . . . . . . . 2 2 . . . 1 3 2 . . . . . . . . Combat Hostiles 3 | . . . . . . . . . . . 1 . . . . . . . . . . . . . . . . . . . . . 2 . . . . . . . . Parts Fried 40 | . 4 . . . . 2 . . . . 4 . 5 . . . . . . . . 2 . . . 11 2 . . . 2 7 1 . . . . . . . . Impact Corruptions 37 | . . . . . . 1 . . . . 7 . 4 . . . . . . . . 1 . . . 8 2 2 . . 1 8 2 . . . . . . 1 . Robots Melted 3 | . . . . . . . . . . . 1 . . . . . . . . . . . . . . . . . 1 . 1 . . . . . . . . . . Combat Hostiles 3 | . . . . . . . . . . . 1 . . . . . . . . . . . . . . . . . 1 . 1 . . . . . . . . . . Parts Melted 27 | . . 2 . . 1 . . . . . . 1 4 . . . . . . . . . 2 2 1 . . . 8 . 1 . 1 . . . . . . . 4 Heat Transferred 5117 | . 322 333 185 148 . . . . 150 . 1172 . 150 . . . . . . 100 . . . . . 203 . . 259 . 444 37 110 111 . . 74 . 37 222 1060 Parts Sabotaged . | . . . . . . . . . . . . . . . . . . . . . . . . . . . . . . . . . . . . . . . . . . Parts Stolen . | . . . . . . . . . . . . . . . . . . . . . . . . . . . . . . . . . . . . . . . . . . Parts Stripped . | . . . . . . . . . . . . . . . . . . . . . . . . . . . . . . . . . . . . . . . . . . Power Chain Reactions 4 | . 2 . . . . . . . . . . . . . . . . . . 2 . . . . . . . . . . . . . . . . . . . . . Alert | -11 -10 -10 -9 -9 -9 -8 -8 -8 -8 -7 -7 -6 -6 -6 -6 -5 -5 -5 -5 -5 -5 -5 -5 -5 -5 -5 -5 -4 -4 -4 -4 -3 -3 -2 -2 -2 -2 -1 -1 -1 -1 ------- Run | Yrd Mat Min Mat Sto Gar Mat Gar Mat Gar Fac Gar Fac Gar Fac Gar Fac Was Fac Gar Fac Gar Fac Gar Fac Gar Fac Gar Fac Gar Fac Gar Res Gar Res Gar Res Gar Acc Gar Acc Com Maximum Alert Level 4 | . . . 2 1 3 2 3 2 1 . 3 2 2 1 1 . . 1 4 3 2 1 2 1 2 1 2 2 3 1 3 2 1 . 2 1 2 1 3 2 2 Low Security (%) 48 | 100 100 100 62 44 . 70 23 17 57 100 32 . . 83 80 100 100 79 12 . . 84 46 93 69 92 36 28 3 . . 8 57 100 10 19 60 82 46 29 93 Level 1 22 | . . . 15 55 18 21 5 79 42 . 15 55 59 16 19 . . 20 4 . . 15 35 6 17 7 12 71 5 100 39 34 42 . 40 80 19 17 27 59 4 Level 2 21 | . . . 21 . 36 8 44 2 . . 30 45 40 . . . . . 32 37 100 . 18 . 13 . 51 . 85 . 45 56 . . 48 . 19 . 25 11 1 Level 3 6 | . . . . . 45 . 26 . . . 21 . . . . . . . 21 62 . . . . . . . . 5 . 14 . . . . . . . . . . Level 4 1 | . . . . . . . . . . . . . . . . . . . 28 . . . . . . . . . . . . . . . . . . . . . . Level 5 . | . . . . . . . . . . . . . . . . . . . . . . . . . . . . . . . . . . . . . . . . . . High Security . | . . . . . . . . . . . . . . . . . . . . . . . . . . . . . . . . . . . . . . . . . . Max Security . | . . . . . . . . . . . . . . . . . . . . . . . . . . . . . . . . . . . . . . . . . . Peak Influence 1215 | 5 89 75 440 393 950 474 941 458 290 152 863 452 535 261 380 199 46 230 1215 876 626 285 487 252 461 241 590 403 720 378 796 447 310 131 615 345 445 266 754 452 207 Initial 637 | . . 4 . 174 254 462 15 458 9 151 10 452 273 261 . 199 46 . 140 637 495 285 76 249 17 241 16 309 86 378 243 447 47 128 16 345 117 266 17 452 201 Average 275 | . 27 15 171 224 657 139 489 216 149 58 393 390 381 115 117 167 3 44 735 707 518 114 260 65 176 48 341 248 516 365 475 373 158 36 399 260 177 100 254 252 87 Influence Increases 24597 | 25 362 245 1000 1121 806 434 1096 434 315 66 1003 129 376 26 525 4 . 269 1355 1309 459 541 761 651 862 526 834 448 924 . 773 266 847 556 865 81 700 154 1076 1271 1102 Destroy 0b10 Robot/C 6375 | . 160 180 540 660 440 240 495 180 120 . 390 45 45 . 45 . . 30 300 330 135 90 135 60 180 105 240 120 225 . 60 30 90 135 195 . 30 . 75 45 225 Destroy 0b10 Robot/NC 498 | 25 30 . 75 60 . 36 12 32 . 4 12 4 . 4 . . . 20 4 48 . 32 . 8 . 44 . 4 . . . 20 . . . . . 8 . 12 4 Destroy Leader 1082 | . 46 30 190 182 20 70 16 82 16 2 16 18 8 . . . . 10 32 42 16 26 24 24 16 40 32 18 32 . . 10 . 16 16 . 8 . . 8 16 Allied During Kill 3471 | . . . . 41 97 26 138 99 34 1 175 27 18 3 44 . . 60 336 420 149 92 136 92 129 67 74 107 109 . 60 60 90 151 211 . 32 8 75 65 245 Trap Triggered on 0b10 10 | . . . . 10 . . . . . . . . . . . . . . . . . . . . . . . . . . . . . . . . . . . . . Successful Hack 420 | . 21 . 26 29 . 7 9 6 20 8 . 11 8 14 6 . . 21 9 20 9 . 11 34 11 11 11 18 31 . . . 6 6 33 10 11 . . . 3 Select Force Hacks 214 | . 30 . . . . . . 23 . 23 . 23 . . . . . . . . . 46 . . . 23 . 23 . . . . . . . 23 . . . . . Disable Machine 1299 | . 30 . 90 15 . 12 . . . 24 48 . 12 . . . . 84 36 228 . 72 12 180 48 60 . 72 . . 12 12 24 12 36 12 . 12 . 120 36 Anti-Garrison Action 6012 | . . . . . 150 . 341 . 114 . 303 . 227 . 379 . . . 454 113 76 113 303 113 340 . 341 . 265 . 341 . 453 113 265 . 303 . 679 226 . Destroy Structure 4760 | . 15 5 34 34 54 31 73 12 11 4 47 1 46 5 39 4 . 44 184 108 62 46 140 140 114 152 136 74 262 . 300 134 184 123 109 12 304 126 235 795 561 Partial Spotted 48 | . . . . . . . . . . . . . . . . . . . . . . . . . . 12 . 12 . . . . . . . 24 . . . . . Lose Combat Pursuer 408 | . 30 30 45 90 45 12 12 . . . 12 . 12 . 12 . . . . . 12 24 . . 24 12 . . . . . . . . . . 12 . 12 . 12 Influence Decreases 24132 | 25 350 257 585 1145 247 1360 179 1360 40 341 155 601 268 525 145 251 133 69 340 1816 623 976 393 1103 426 964 267 915 327 372 325 999 681 763 272 540 411 577 344 1710 952 Entered New Map 6303 | . . 8 . 241 137 488 9 483 6 139 5 411 118 238 . 181 87 . 60 578 213 259 33 228 8 220 7 281 37 342 105 349 16 101 6 270 39 179 5 302 114 Time Decay 7838 | 25 350 249 555 643 . 532 . 317 . 192 . 170 . 267 . 70 46 69 . 658 . 437 . 571 . 398 . 294 . 30 . 180 . 329 . 190 . 286 . 598 382 Lost Part 535 | . . . 30 40 10 20 110 40 . . 10 . 10 . 10 . . . . 10 . . . . 60 5 20 . 50 . 20 . 10 . 10 . . . . 10 60 Lost Ally 8307 | . . . . 40 100 170 60 220 34 10 140 20 140 20 135 . . . 280 570 410 280 360 184 358 218 240 340 240 . 200 470 380 333 256 80 372 112 339 800 396 Purge Threat 1149 | . . . . 181 . 150 . 300 . . . . . . . . . . . . . . . 120 . 123 . . . . . . 275 . . . . . . . . Squads Dispatched 112 | . 3 . 4 6 . 3 . 6 . 1 . 2 . 1 . . . 1 . 14 . 8 . 6 . 14 . 6 . . . 5 . 6 . 5 . 2 . 16 3 Investigation 18 | . 2 . 1 1 . . . 1 . 1 . 1 . . . . . . . . . 2 . . . 3 . 1 . . . 1 . 1 . 2 . . . 1 . Extermination 25 | . . . . . . . . . . . . . . 1 . . . 1 . 4 . 2 . 3 . 3 . 1 . . . 1 . 2 . . . 1 . 4 2 Reinforcement 34 | . 1 . 3 1 . 3 . 5 . . . . . . . . . . . 3 . 1 . . . 5 . 4 . . . 1 . 1 . 1 . . . 5 . Assault 19 | . . . . 2 . . . . . . . . . . . . . . . 6 . 2 . 2 . . . . . . . . . 2 . . . . . 4 1 Garrison 16 | . . . . 2 . . . . . . . 1 . . . . . . . 1 . 1 . 1 . 3 . . . . . 2 . . . 2 . 1 . 2 . Intercept . | . . . . . . . . . . . . . . . . . . . . . . . . . . . . . . . . . . . . . . . . . . Searches Triggered . | . . . . . . . . . . . . . . . . . . . . . . . . . . . . . . . . . . . . . . . . . . Unchained Authorized 5 | . . . . . . . . . . . . . . . . . . . . . . . . . . 1 . . . . . 1 . 1 . 1 . 1 . . . Construction Impeded 2 | . . . . . . . . 2 . . . . . . . . . . . . . . . . . . . . . . . . . . . . . . . . . Haulers Reinforced 5 | . . . . . . . . . . . . . . . . . . . . . . . . . . . . . . . . 1 . . . . . . . 4 . Active Scanning Responses . | . . . . . . . . . . . . . . . . . . . . . . . . . . . . . . . . . . . . . . . . . . Cargo Convoy Interrupts 3 | . . . . . . . . . . . . . . . . . . . . 1 . . . . . 1 . . . . . 1 . . . . . . . . . Alert ID Control Effect 643 | . . . . . . . . . . . . . 6 4 14 1 . 1 4 51 16 33 27 43 19 21 16 18 15 . 18 34 29 20 27 3 27 11 39 91 55 Stealth | -11 -10 -10 -9 -9 -9 -8 -8 -8 -8 -7 -7 -6 -6 -6 -6 -5 -5 -5 -5 -5 -5 -5 -5 -5 -5 -5 -5 -4 -4 -4 -4 -3 -3 -2 -2 -2 -2 -1 -1 -1 -1 --------- Run | Yrd Mat Min Mat Sto Gar Mat Gar Mat Gar Fac Gar Fac Gar Fac Gar Fac Was Fac Gar Fac Gar Fac Gar Fac Gar Fac Gar Fac Gar Fac Gar Res Gar Res Gar Res Gar Acc Gar Acc Com Distress Signals 52 | . . . 3 2 . 2 . 1 . . . . . . . . . . . 2 . 1 . 1 1 7 . . 1 . . 3 . 4 1 . 4 1 . 7 11 Communications Jammed 2651 | . . . . . . . . . . . . . . . . . . . . 1333 . 240 . 5 2 16 . 349 . . 10 10 124 62 30 . 18 95 . 357 . Distress Signals 2635 | . . . . . . . . . . . . . . . . . . . . 1331 . 237 . . 2 16 . 349 . . 10 9 124 62 30 . 18 95 . 352 . Times Spotted 1252 | . 22 11 37 45 21 38 48 24 13 2 29 4 25 5 24 2 1 3 34 65 38 50 41 41 47 116 47 28 46 . 27 28 38 30 35 6 46 17 48 46 24 Peak Tracking Total 22 | . 3 3 4 5 5 4 8 5 3 1 9 3 3 2 6 1 1 2 4 11 7 5 7 4 14 20 8 4 9 . 4 4 3 4 6 2 11 5 6 6 22 Tactical Retreats 39 | . 2 2 2 6 1 1 1 . . . 1 . 1 . 1 . . . . . 1 2 . . 1 14 . . . . . . . . . . 1 . 1 . 1 ID Masks Used 1 | . . . . . . . . . . . . . . . . . . . . . . . . . . . . . . . . . . . . . . . 1 . . Traps | -11 -10 -10 -9 -9 -9 -8 -8 -8 -8 -7 -7 -6 -6 -6 -6 -5 -5 -5 -5 -5 -5 -5 -5 -5 -5 -5 -5 -4 -4 -4 -4 -3 -3 -2 -2 -2 -2 -1 -1 -1 -1 ------- Run | Yrd Mat Min Mat Sto Gar Mat Gar Mat Gar Fac Gar Fac Gar Fac Gar Fac Was Fac Gar Fac Gar Fac Gar Fac Gar Fac Gar Fac Gar Fac Gar Res Gar Res Gar Res Gar Acc Gar Acc Com Traps Triggered 74 | . . 3 1 1 1 . 5 . 2 . 2 . 2 . 2 1 . 1 5 . . . 8 . 4 . 8 4 7 . 4 1 3 . 2 . 2 . 2 1 2 Indirectly 2 | . . . . . . . . . . . . . . . . . . . . . . . 2 . . . . . . . . . . . . . . . . . . Trap Hack Attempts 92 | . . . . 92 . . . . . . . . . . . . . . . . . . . . . . . . . . . . . . . . . . . . . Triggered . | . . . . . . . . . . . . . . . . . . . . . . . . . . . . . . . . . . . . . . . . . . Disarmed . | . . . . . . . . . . . . . . . . . . . . . . . . . . . . . . . . . . . . . . . . . . Reprogrammed 5 | . . . . 5 . . . . . . . . . . . . . . . . . . . . . . . . . . . . . . . . . . . . . Reused 1 | . . . . 1 . . . . . . . . . . . . . . . . . . . . . . . . . . . . . . . . . . . . . Traps Extracted . | . . . . . . . . . . . . . . . . . . . . . . . . . . . . . . . . . . . . . . . . . . Installed 4 | . . 3 1 . . . . . . . . . . . . . . . . . . . . . . . . . . . . . . . . . . . . . . Triggered 1 | . . . . 1 . . . . . . . . . . . . . . . . . . . . . . . . . . . . . . . . . . . . . Most Traps Carried 1 | . . 1 1 . . . . . . . . . . . . . . . . . . . . . . . . . . . . . . . . . . . . . . Machines | -11 -10 -10 -9 -9 -9 -8 -8 -8 -8 -7 -7 -6 -6 -6 -6 -5 -5 -5 -5 -5 -5 -5 -5 -5 -5 -5 -5 -4 -4 -4 -4 -3 -3 -2 -2 -2 -2 -1 -1 -1 -1 ---------- Run | Yrd Mat Min Mat Sto Gar Mat Gar Mat Gar Fac Gar Fac Gar Fac Gar Fac Was Fac Gar Fac Gar Fac Gar Fac Gar Fac Gar Fac Gar Fac Gar Res Gar Res Gar Res Gar Acc Gar Acc Com Machines Disabled 202 | . 2 . 6 1 3 1 6 . 3 2 10 . 6 . 5 . . 7 12 20 3 7 7 16 8 5 8 6 4 . 6 1 9 2 7 1 5 1 7 12 3 Max in Single Turn 2 | . 1 . 1 1 1 1 1 . 1 1 1 . 1 . 1 . . . 1 1 1 1 1 1 1 2 1 . 1 . 1 1 1 1 1 1 1 . 1 1 . Garrison Access 8 | . . . . . . . . . . . . . . . . 1 . . . 1 . 1 . 2 . . . . . . . . . 1 . . . . . 2 . Garrison Relay 80 | . . . . . 2 . 6 . 2 . 5 . 4 . 5 . . . 7 . 3 . 5 . 4 . 6 . 4 . 4 . 7 . 4 . 5 . 7 . . Phase Generator 2 | . . . . . . . . . . . . . . . . . . . . . . . . . . . 1 . . . 1 . . . . . . . . . . Machines Repaired . | . . . . . . . . . . . . . . . . . . . . . . . . . . . . . . . . . . . . . . . . . . Machines Dismantled 15 | . . . . . . . . . . . . . . . . . . . . . . 1 1 7 1 . . . . . 1 . . . 1 . . . . 3 . Machines Sabotaged . | . . . . . . . . . . . . . . . . . . . . . . . . . . . . . . . . . . . . . . . . . . Overloaded Fab Kills . | . . . . . . . . . . . . . . . . . . . . . . . . . . . . . . . . . . . . . . . . . . Hacking | -11 -10 -10 -9 -9 -9 -8 -8 -8 -8 -7 -7 -6 -6 -6 -6 -5 -5 -5 -5 -5 -5 -5 -5 -5 -5 -5 -5 -4 -4 -4 -4 -3 -3 -2 -2 -2 -2 -1 -1 -1 -1 --------- Run | Yrd Mat Min Mat Sto Gar Mat Gar Mat Gar Fac Gar Fac Gar Fac Gar Fac Was Fac Gar Fac Gar Fac Gar Fac Gar Fac Gar Fac Gar Fac Gar Res Gar Res Gar Res Gar Acc Gar Acc Com Machines Accessed 152 | . 9 . 13 9 1 6 3 6 2 4 2 2 3 4 4 4 . 3 3 5 3 4 3 14 3 6 2 5 2 1 2 2 2 5 4 4 2 2 2 . 1 Terminals 91 | . 6 . 8 6 1 3 3 3 2 1 2 . 3 . 4 . . 2 3 2 3 1 3 7 3 3 2 2 2 . 2 . 2 1 4 1 2 1 2 . 1 Fabricators 9 | . . . . . . . . . . 1 . . . . . . . . . 1 . . . 2 . 1 . 1 . . . 1 . 2 . . . . . . . Repair Stations 12 | . 1 . 2 . . 1 . 2 . 1 . . . 2 . . . . . . . . . 1 . 1 . . . . . . . . . 1 . . . . . Recycling Units 10 | . 2 . 1 2 . 1 . . . . . 1 . . . 2 . . . . . . . . . . . . . . . . . . . 1 . . . . . Scanalyzers 8 | . . . 2 . . . . . . . . . . 1 . 1 . . . 1 . 1 . 1 . . . 1 . . . . . . . . . . . . . Garrison Access 22 | . . . . 1 . 1 . 1 . 1 . 1 . 1 . 1 . 1 . 1 . 2 . 3 . 1 . 1 . 1 . 1 . 2 . 1 . 1 . . . Total Hacks 363 | . 25 . 38 27 3 15 7 17 5 12 4 4 5 9 9 7 . 8 6 11 8 8 9 29 4 18 3 8 5 2 5 5 3 11 10 8 6 3 5 . 1 Successful 171 | . 14 . 18 19 . 9 2 11 2 7 . 4 2 6 2 3 . 3 1 4 3 7 2 11 1 8 1 5 3 2 . 2 1 6 3 6 1 1 . . 1 Failed 190 | . 11 . 20 8 3 6 5 6 3 5 4 . 3 3 7 3 . 5 5 6 5 1 7 18 3 10 2 3 2 . 5 3 2 5 7 2 5 2 5 . . Catastrophic 43 | . 1 . . 1 . . 2 1 1 . 1 . 2 . 2 . . 1 2 1 2 1 . 3 2 2 1 3 1 . 2 3 . 2 2 . 2 2 . . . Database Lockouts 2 | . . . . . . . . . . . . . . . . 1 . . . 1 . . . . . . . . . . . . . . . . . . . . . Manual 173 | . 19 . 20 19 . 7 5 10 3 6 . 2 2 4 1 . . . 2 3 4 3 5 20 . 9 . 3 2 . 1 3 . 8 2 6 2 2 . . . Terminals 212 | . 19 . 23 18 3 8 7 8 5 2 4 . 5 . 9 . . 6 6 3 8 1 9 14 4 5 3 2 5 . 5 . 3 1 10 3 6 1 5 . 1 Fabricators 23 | . . . . . . . . . . 4 . . . . . . . . . 3 . . . 5 . 5 . 2 . . . 1 . 3 . . . . . . . Repair Stations 36 | . 3 . 7 . . 4 . 7 . 3 . . . 5 . . . . . . . . . 2 . 4 . . . . . . . . . 1 . . . . . Recycling Units 20 | . 3 . 2 8 . 2 . . . . . 1 . . . 3 . . . . . . . . . . . . . . . . . . . 1 . . . . . Scanalyzers 18 | . . . 6 . . . . . . . . . . 2 . 2 . . . 2 . 3 . 2 . . . 1 . . . . . . . . . . . . . Garrison Access 54 | . . . . 1 . 1 . 2 . 3 . 3 . 2 . 2 . 2 . 3 . 4 . 6 . 4 . 3 . 2 . 4 . 7 . 3 . 2 . . . Terminal Hacks 37 | . 4 . . 4 . 2 2 2 2 1 . . 2 . 2 . . 1 1 1 2 . 1 1 1 . 1 . 2 . . . 1 . 2 . 1 . . . 1 Part Schematic 1 | . 1 . . . . . . . . . . . . . . . . . . . . . . . . . . . . . . . . . . . . . . . . Robot Analysis 3 | . 2 . . . . 1 . . . . . . . . . . . . . . . . . . . . . . . . . . . . . . . . . . . Open Door 8 | . . . . 2 . . 1 . . . . . 1 . 1 . . . . . . . . 1 . . . . . . . . 1 . . . . . . . 1 Branch Access Points 1 | . . . . . . . . . . 1 . . . . . . . . . . . . . . . . . . . . . . . . . . . . . . . Emergency Access Points 11 | . . . . . . . 1 . 1 . . . 1 . 1 . . . 1 . . . 1 . 1 . 1 . 1 . . . . . 1 . 1 . . . . Machine Index 1 | . . . . . . . . . . . . . . . . . . 1 . . . . . . . . . . . . . . . . . . . . . . . Unreport Threat 4 | . . . . 2 . 1 . 1 . . . . . . . . . . . . . . . . . . . . . . . . . . . . . . . . . Recall Assault 1 | . . . . . . . . . . . . . . . . . . . . 1 . . . . . . . . . . . . . . . . . . . . . Hauler Manifests 2 | . 1 . . . . . . 1 . . . . . . . . . . . . . . . . . . . . . . . . . . . . . . . . . Garrison Registry 2 | . . . . . . . . . 1 . . . . . . . . . . . 1 . . . . . . . . . . . . . . . . . . . . Patrol Navigation 2 | . . . . . . . . . . . . . . . . . . . . . 1 . . . . . . . 1 . . . . . . . . . . . . Security Stations 1 | . . . . . . . . . . . . . . . . . . . . . . . . . . . . . . . . . . . 1 . . . . . . Fabricator Hacks 3 | . . . . . . . . . . 1 . . . . . . . . . . . . . . . 1 . 1 . . . . . . . . . . . . . Network Status 3 | . . . . . . . . . . 1 . . . . . . . . . . . . . . . 1 . 1 . . . . . . . . . . . . . Repair Station Hacks 20 | . 1 . 4 . . 4 . 6 . 2 . . . 2 . . . . . . . . . . . 1 . . . . . . . . . . . . . . . Scan Component 11 | . 1 . 2 . . 2 . 3 . 1 . . . 1 . . . . . . . . . . . 1 . . . . . . . . . . . . . . . Repair 9 | . . . 2 . . 2 . 3 . 1 . . . 1 . . . . . . . . . . . . . . . . . . . . . . . . . . . Recycling Unit Hacks 6 | . 1 . 1 2 . 1 . . . . . 1 . . . . . . . . . . . . . . . . . . . . . . . . . . . . . Retrieve Components 6 | . 1 . 1 2 . 1 . . . . . 1 . . . . . . . . . . . . . . . . . . . . . . . . . . . . . Scanalyzer 11 | . . . 4 . . . . . . . . . . 1 . 1 . . . 1 . 3 . 1 . . . . . . . . . . . . . . . . . Insert Component 3 | . . . 2 . . . . . . . . . . . . . . . . . . 1 . . . . . . . . . . . . . . . . . . . Analyze 2 | . . . 1 . . . . . . . . . . . . . . . . . . 1 . . . . . . . . . . . . . . . . . . . Retrieve Study 6 | . . . 1 . . . . . . . . . . 1 . 1 . . . 1 . 1 . 1 . . . . . . . . . . . . . . . . . Garrison Access Hacks 30 | . . . . 1 . 1 . 1 . 1 . 1 . 1 . 2 . 2 . 1 . 2 . 5 . 2 . 2 . 2 . 2 . 2 . 1 . 1 . . . Unlock Access 20 | . . . . 1 . 1 . 1 . 1 . 1 . 1 . . . 1 . 1 . 2 . 2 . 1 . 1 . 1 . 1 . 2 . 1 . 1 . . . Seal Access 2 | . . . . . . . . . . . . . . . . 1 . . . . . . . 1 . . . . . . . . . . . . . . . . . Coupler Status 8 | . . . . . . . . . . . . . . . . 1 . 1 . . . . . 2 . 1 . 1 . 1 . 1 . . . . . . . . . Unauthorized Hacks 64 | . 8 . 9 12 . 1 . 2 . 2 . 2 . 2 . . . . . 1 1 2 1 4 . 4 . 2 1 . . . . 4 1 5 . . . . . Terminals 33 | . 7 . 8 7 . 1 . 1 . . . . . . . . . . . . 1 . 1 2 . 1 . . 1 . . . . . 1 2 . . . . . Track 1 | . . . . . . . . . . . . . . . . . . . . . . . . . . 1 . . . . . . . . . . . . . . . Assimilate 2 | . . . 2 . . . . . . . . . . . . . . . . . . . . . . . . . . . . . . . . . . . . . . Botnet 12 | . 2 . . 2 . 1 . 1 . . . . . . . . . . . . 1 . 1 1 . . . . 1 . . . . . 1 1 . . . . . Operators 4 | . . . 1 1 . . . . . . . . . . . . . . . . . . . 1 . . . . . . . . . . . 1 . . . . . Skim 14 | . 5 . 5 4 . . . . . . . . . . . . . . . . . . . . . . . . . . . . . . . . . . . . . Fabricators 3 | . . . . . . . . . . . . . . . . . . . . . . . . 1 . 1 . 1 . . . . . . . . . . . . . Liberate 1 | . . . . . . . . . . . . . . . . . . . . . . . . 1 . . . . . . . . . . . . . . . . . Haulers 2 | . . . . . . . . . . . . . . . . . . . . . . . . . . 1 . 1 . . . . . . . . . . . . . Repair Stations 7 | . . . 1 . . . . . . 1 . . . 2 . . . . . . . . . 1 . 1 . . . . . . . . . 1 . . . . . Mechanics 6 | . . . . . . . . . . 1 . . . 2 . . . . . . . . . 1 . 1 . . . . . . . . . 1 . . . . . Patch 1 | . . . 1 . . . . . . . . . . . . . . . . . . . . . . . . . . . . . . . . . . . . . . Recycling Units 6 | . 1 . . 5 . . . . . . . . . . . . . . . . . . . . . . . . . . . . . . . . . . . . . Monitor 1 | . . . . 1 . . . . . . . . . . . . . . . . . . . . . . . . . . . . . . . . . . . . . Reject 2 | . . . . 2 . . . . . . . . . . . . . . . . . . . . . . . . . . . . . . . . . . . . . Mask 2 | . . . . 2 . . . . . . . . . . . . . . . . . . . . . . . . . . . . . . . . . . . . . Tunnel 1 | . 1 . . . . . . . . . . . . . . . . . . . . . . . . . . . . . . . . . . . . . . . . Scanalyzers . | . . . . . . . . . . . . . . . . . . . . . . . . . . . . . . . . . . . . . . . . . . Garrison Access 15 | . . . . . . . . 1 . 1 . 2 . . . . . . . 1 . 2 . . . 1 . 1 . . . . . 4 . 2 . . . . . Broadcast 1 | . . . . . . . . . . . . . . . . . . . . . . . . . . . . . . . . . . 1 . . . . . . . Redirect 1 | . . . . . . . . . . . . 1 . . . . . . . . . . . . . . . . . . . . . . . . . . . . . Reprogram 3 | . . . . . . . . . . . . . . . . . . . . 1 . . . . . . . . . . . . . 1 . 1 . . . . . Intercept 1 | . . . . . . . . . . . . . . . . . . . . . . . . . . . . . . . . . . 1 . . . . . . . Watchers 1 | . . . . . . . . . . . . . . . . . . . . . . . . . . . . . . . . . . 1 . . . . . . . Eject 8 | . . . . . . . . 1 . 1 . 1 . . . . . . . . . 2 . . . 1 . 1 . . . . . . . 1 . . . . . Data Cores Recovered 5 | . 2 . . . . . . . . . . . . . . . . 1 . . . . . 1 . 1 . . . . . . . . . . . . . . . Used 3 | . 1 . . . . . . . . . . . . . . . . 1 . . . . . . . 1 . . . . . . . . . . . . . . . Hacking Detections 131 | . 8 . 11 6 1 3 2 5 2 4 2 1 2 4 4 4 . 3 3 5 3 2 3 12 3 5 2 4 2 1 2 2 1 5 4 3 2 2 2 . 1 Full Trace Events 18 | . 1 . . . 1 . 1 . 1 . 1 . . . 3 . . . 1 . . . 1 . 1 1 . . 1 . 2 . . . 1 . 1 . 1 . . Feedback Events 2 | . . . . . . . . . . . . . . . 1 . . . . . . . . . . . . . . . 1 . . . . . . . . . . Corruption 2 | . . . . . . . . . . . . . . . 1 . . . . . . . . . . . . . . . 1 . . . . . . . . . . Feedback Blocked . | . . . . . . . . . . . . . . . . . . . . . . . . . . . . . . . . . . . . . . . . . . Robot Schematics Acquired 54 | . . . . . . . . . . . . . . . . . . . . . . . . . . . . . . . . . . 54 . . . . . . . Robots Built . | . . . . . . . . . . . . . . . . . . . . . . . . . . . . . . . . . . . . . . . . . . Authchips . | . . . . . . . . . . . . . . . . . . . . . . . . . . . . . . . . . . . . . . . . . . Time . | . . . . . . . . . . . . . . . . . . . . . . . . . . . . . . . . . . . . . . . . . . Total Robot Build Rating . | . . . . . . . . . . . . . . . . . . . . . . . . . . . . . . . . . . . . . . . . . . Part Schematics Acquired 3 | . 1 . 1 . . . . . . . . . . . . . . . . . . 1 . . . . . . . . . . . . . . . . . . . Parts Built . | . . . . . . . . . . . . . . . . . . . . . . . . . . . . . . . . . . . . . . . . . . Authchips . | . . . . . . . . . . . . . . . . . . . . . . . . . . . . . . . . . . . . . . . . . . Time . | . . . . . . . . . . . . . . . . . . . . . . . . . . . . . . . . . . . . . . . . . . Total Part Build Rating . | . . . . . . . . . . . . . . . . . . . . . . . . . . . . . . . . . . . . . . . . . . Part Studies Acquired 6 | . . . 1 . . . . . . . . . . 1 . 1 . . . 1 . 1 . 1 . . . . . . . . . . . . . . . . . Parts Repaired 9 | . . . 2 . . 2 . 3 . 1 . . . 1 . . . . . . . . . . . . . . . . . . . . . . . . . . . Time 427 | . . . 162 . . 82 . 114 . 19 . . . 50 . . . . . . . . . . . . . . . . . . . . . . . . . . . Parts Recycled . | . . . . . . . . . . . . . . . . . . . . . . . . . . . . . . . . . . . . . . . . . . Recycled Matter . | . . . . . . . . . . . . . . . . . . . . . . . . . . . . . . . . . . . . . . . . . . Retrieved Matter . | . . . . . . . . . . . . . . . . . . . . . . . . . . . . . . . . . . . . . . . . . . Retrieved Components 34 | . 1 . 10 19 . 3 . . . . . 1 . . . . . . . . . . . . . . . . . . . . . . . . . . . . . Parts Scanalyzed 2 | . . . 1 . . . . . . . . . . . . . . . . . . 1 . . . . . . . . . . . . . . . . . . . Part Schematics Acquired 2 | . . . 1 . . . . . . . . . . . . . . . . . . 1 . . . . . . . . . . . . . . . . . . . Parts Damaged 1 | . . . 1 . . . . . . . . . . . . . . . . . . . . . . . . . . . . . . . . . . . . . . Bothacking | -11 -10 -10 -9 -9 -9 -8 -8 -8 -8 -7 -7 -6 -6 -6 -6 -5 -5 -5 -5 -5 -5 -5 -5 -5 -5 -5 -5 -4 -4 -4 -4 -3 -3 -2 -2 -2 -2 -1 -1 -1 -1 ------------ Run | Yrd Mat Min Mat Sto Gar Mat Gar Mat Gar Fac Gar Fac Gar Fac Gar Fac Was Fac Gar Fac Gar Fac Gar Fac Gar Fac Gar Fac Gar Fac Gar Res Gar Res Gar Res Gar Acc Gar Acc Com Used RIF Installer 22 | . . . . . 2 . 2 . 1 . 2 . 1 . 1 . . . 2 . 1 . 1 . 1 . 2 . 1 . 1 . 1 . 1 . 1 . 1 . . Coupler Efficiency 3 | . . . . . . . 1 . . . . . . . . . . . . . 1 . . . 1 . . . . . . . . . . . . . . . . Hotswap 1 | . . . . . . . . . . . . . . . . . . . 1 . . . . . . . . . . . . . . . . . . . . . . Code Merge 1 | . . . . . . . . . . . . . . . . . . . 1 . . . . . . . . . . . . . . . . . . . . . . Command Fork 2 | . . . . . . . . . . . . . . . . . . . . . . . . . . . 1 . . . . . . . . . 1 . . . . Threat Obfuscator 1 | . . . . . 1 . . . . . . . . . . . . . . . . . . . . . . . . . . . . . . . . . . . . Signal Jammer 1 | . . . . . . . . . . . . . . . 1 . . . . . . . . . . . . . . . . . . . . . . . . . . Zone Cloak 2 | . . . . . . . . . . . . . . . . . . . . . . . . . . . . . . . 1 . . . 1 . . . . . . Robot Detection 1 | . . . . . . . . . . . . . . . . . . . . . . . . . . . . . 1 . . . . . . . . . . . . Watcher Feeds 1 | . . . . . . . . . . . . . 1 . . . . . . . . . . . . . . . . . . . . . . . . . . . . Alert ID Control 1 | . . . . . . . . . . . 1 . . . . . . . . . . . . . . . . . . . . . . . . . . . . . . Structural Interface 1 | . . . . . . . . . . . . . . . . . . . . . . . . . . . . . . . . . 1 . . . . . . . . Autooverride 3 | . . . . . . . 1 . . . . . . . . . . . . . . . 1 . . . 1 . . . . . . . . . . . . . . Autoassimilate 2 | . . . . . . . . . 1 . 1 . . . . . . . . . . . . . . . . . . . . . . . . . . . . . . Crosswire 1 | . . . . . . . . . . . . . . . . . . . . . . . . . . . . . . . . . . . . . . . 1 . . Robots Hacked 722 | . . . . 1 . 16 6 15 6 2 12 . 23 6 19 2 . 3 26 32 22 27 25 25 27 34 28 22 30 . 18 28 37 26 27 4 32 8 49 66 18 Non-combat 116 | . . . . 1 . 8 . 2 . 2 . . . 6 . 1 . 3 2 9 . 5 . 12 1 15 . 7 1 . 1 9 2 7 1 1 . 3 . 15 2 Combat 606 | . . . . . . 8 6 13 6 . 12 . 23 . 19 1 . . 24 23 22 22 25 13 26 19 28 15 29 . 17 19 35 19 26 3 32 5 49 51 16 Autooverrided 146 | . . . . . . . . 1 1 . 3 . 5 . 3 . . . 4 2 2 3 4 2 4 6 6 3 7 . 6 4 11 8 6 2 7 2 16 20 8 Autoassimilated 132 | . . . . . . . . . . . 3 . 9 . 7 . . . 6 7 1 6 2 8 5 2 3 . 6 . 1 3 9 2 5 . 6 . 19 17 5 Robot Hacks Applied 518 | . . . . 1 . 18 6 15 5 3 6 . 9 7 10 2 . 3 16 30 21 21 21 23 18 35 23 20 20 . 14 23 19 16 17 4 23 10 17 34 8 parse_system 32 | . . . . . . . . . . 1 1 . . 1 1 . . . . 3 1 . 2 1 . 4 2 . 1 . . . 2 1 1 . 4 1 . 3 2 no_distress 2 | . . . . 1 . . . . . . . . . . . . . . . . . . . 1 . . . . . . . . . . . . . . . . . find_chute 4 | . . . . . . . . . . 1 . . . . . 1 . . . . . . . . . . . 2 . . . . . . . . . . . . . deconstruct_machine 2 | . . . . . . . . . . . . . . . . . . . . 1 . . . . . . . . . . . . . . . 1 . . . . . ignore_repairs 24 | . . . . . . . . . . . . . . 1 . . . . . 1 . . . 7 . 7 . 1 . . . 3 . 2 . . . . . 2 . map_walls 9 | . . . . . . . . . . . . . . 1 . . . . . . . . . . . . . . . . . 1 . 2 . . . 1 . 4 . drop_inventory 17 | . . . . . . 3 . . . . . . . 1 . . . 1 . 1 . 2 . 1 . . . 2 . . . 3 . 2 . . . . . 1 . find_recycling 2 | . . . . . . . . . . . . . . . . . . . . . . 1 . . . . . . . . . . . . . . . . . 1 . ignore_parts 2 | . . . . . . . . . . . . . . . . . . . . . . . . . . . . . . . . 2 . . . . . . . . . purge_threat 5 | . . . . . . . . 1 . . . . . . . . . . . . . . . 1 . 1 . . . . . . 2 . . . . . . . . disarm_traps 1 | . . . . . . . . . . . . . . . . . . . . . . . . 1 . . . . . . . . . . . . . . . . . block_reporting 1 | . . . . . . . . . . . . . . . . . . . . . . . . 1 . . . . . . . . . . . . . . . . . clear_repairs 1 | . . . . . . . . . . . . . . . . . . . . . . . . . . 1 . . . . . . . . . . . . . . . map_route 14 | . . . . . . 2 . 1 . 1 . . . 1 . . . . . 1 . . . 1 . 1 . 2 . . . . . . . . . . . 3 1 mark_security 1 | . . . . . . 1 . . . . . . . . . . . . . . . . . . . . . . . . . . . . . . . . . . . find_garrison 12 | . . . . . . 1 . 1 . . . . . . . . . . . 2 . 2 . 2 . 1 . 1 . . . 1 . . . . . 1 . . . link_fov 6 | . . . . . . . . . . . . . . . . . . . . . . . . . . 2 . . . . . . . . . 1 . 1 . 2 . focus_fire 1 | . . . . . . . . . . . . . . . . . . . . . . . . . . . 1 . . . . . . . . . . . . . . scatter_targeting 2 | . . . . . . . . . . . . . . . . . . . . . . . . . . . . . . . 1 . . . 1 . . . . . . mark_system 3 | . . . . . . . . . . . . . . . . . . . . 1 . . . . . . . . . . 1 . . . . . 1 . . . . disrupt_area 2 | . . . . . . . . . . . . . . . . . . . . . . . . . . 1 . . 1 . . . . . . . . . . . . spike_heat 2 | . . . . . . . . . . . . . . . . . . . . . . . . . . . . . . . . . . . . . 1 1 . . . overload_power 1 | . . . . . . . . . . . . . . . . . . . . . . . . . . . . . . . . . . . . . . . . 1 . amplify_resonance 23 | . . . . . . . . 2 2 . . . 1 . . . . . 1 2 1 2 1 . . 1 . 1 2 . . . . . 3 . 1 1 2 . . wipe_record 4 | . . . . . . . . . . . 1 . . . 1 . . . . . . . . 1 . . . . . . . . . . . . . 1 . . . disable_weapons 7 | . . . . . . . 2 1 . . . . . . . . . . . . 2 . . 1 . . . . 1 . . . . . . . . . . . . reboot_system 7 | . . . . . . . . . 1 . 1 . 1 . . . . . . . 1 . 1 . . . . . . . . . . 1 1 . . . . . . overwrite_iff 59 | . . . . . . . . 2 1 . . . . . 3 . . . . 4 9 4 4 1 6 3 5 . 1 . 1 1 2 2 3 . 3 . 3 1 . streamctrl_low 7 | . . . . . . . . . . . . . . . . . . . . 7 . . . . . . . . . . . . . . . . . . . . . streamctrl_high 3 | . . . . . . 2 . 1 . . . . . . . . . . . . . . . . . . . . . . . . . . . . . . . . . formatsys_low 27 | . . . . . . 3 . 1 . . . . . 2 . . . 1 2 1 1 2 1 1 . 5 . . . . . 1 1 . 1 . . 2 . 1 1 formatsys_high 230 | . . . . . . 6 4 5 1 . 3 . 7 . 5 1 . 1 13 6 6 8 12 2 12 8 15 11 14 . 11 11 11 5 7 2 12 1 12 14 4 formatsys_deep 5 | . . . . . . . . . . . . . . . . . . . . . . . . 1 . . . . . . . . 1 1 . . 1 . . 1 . Relay Couplers Released 354 | . . . . . 9 . 26 3 8 4 20 3 12 . 21 . . . 27 1 14 4 21 2 19 3 26 3 13 . 17 . 28 1 15 4 23 . 22 5 . Ejected 24 | . . . . . . . . 3 . 4 . 3 . . . . . . . . . 4 . . . 3 . 3 . . . . . . . 4 . . . . . Machine Destruction 323 | . . . . . 9 . 26 . 8 . 20 . 12 . 21 . . . 24 1 14 . 17 2 19 . 26 . 13 . 17 . 28 1 15 . 23 . 22 5 . Programmers 7 | . . . . . . . . . . . . . . . . . . . 3 . . . 4 . . . . . . . . . . . . . . . . . . Attached 122 | . . . . . . 6 5 6 2 2 6 2 7 . 7 . . 1 8 1 4 2 10 3 6 1 7 2 6 . 4 1 7 1 2 . 4 1 3 2 3 Crosswired 10 | . . . . . . . . . . . . . . . . . . . . . . . . . . . . . . . . . . . . . . . 9 1 . Merged Code Value 1653 | . . . . . . . . . . . . . . . . . . . 132 . 57 9 88 . 86 . 230 24 80 . 132 . 210 . 73 32 240 . 246 14 . Fabnet Peak Effective % . | . . . . . . . . . . . . . . . . . . . . . . . . . . . . . . . . . . . . . . . . . . Robots Rewired 104 | . . . . . . . 8 . . . . . . . 1 . . . 3 . . . 17 . . . 3 . 6 . . . 25 . 6 . 12 . 23 . . Allies Hacked 51 | . . . . . . . . . 1 . . . . . 2 . . 2 2 . 2 2 2 2 2 2 5 1 2 . . 2 3 2 4 2 . . 1 5 5 Hacks Repelled 2 | . . . . . . . . . . . . . . . . . . . . . . . . . . . . . . . . . . . . . . 2 . . . Allies | -11 -10 -10 -9 -9 -9 -8 -8 -8 -8 -7 -7 -6 -6 -6 -6 -5 -5 -5 -5 -5 -5 -5 -5 -5 -5 -5 -5 -4 -4 -4 -4 -3 -3 -2 -2 -2 -2 -1 -1 -1 -1 -------- Run | Yrd Mat Min Mat Sto Gar Mat Gar Mat Gar Fac Gar Fac Gar Fac Gar Fac Was Fac Gar Fac Gar Fac Gar Fac Gar Fac Gar Fac Gar Fac Gar Res Gar Res Gar Res Gar Acc Gar Acc Com Total Allies 794 | . . . . 12 . 11 12 10 3 . 11 . 22 2 21 1 21 2 30 22 18 21 41 21 30 22 34 15 36 . 22 21 66 26 30 6 42 7 77 60 19 Largest Group 53 | . . . . 10 10 6 10 10 9 6 9 7 17 15 15 13 33 35 48 43 20 16 22 29 14 16 11 13 17 16 24 26 39 42 28 29 25 23 52 53 40 Highest-Rated Group 4231 | . . . . 88 88 97 183 201 214 166 395 225 555 480 547 596 1412 1417 1923 1933 900 728 1111 1376 656 712 554 659 941 894 1404 1374 2019 2314 1698 1729 1465 1467 3334 4231 3937 Highest-Rated Ally 219 | . . . . 31 16 90 39 90 90 90 95 95 95 47 99 99 99 95 95 142 142 142 142 142 142 142 95 116 116 116 116 116 116 148 148 148 148 148 219 219 219 Total Orders 921 | . . . . 2 2 20 31 9 30 11 27 8 35 10 28 . 2 3 42 44 44 45 13 33 11 51 27 2 39 7 14 1 37 47 9 14 13 19 63 37 91 STAY 541 | . . . . 1 1 12 16 5 17 6 15 4 21 5 17 . 1 1 32 26 27 14 4 10 6 24 16 1 21 3 8 1 17 39 2 5 8 13 47 21 74 ROAM 3 | . . . . . . . . . . . . . . . . . . . . . . 1 . . . 1 . . . . . . . . . . . . . . 1 FOLLOW 304 | . . . . 1 1 8 15 4 13 5 12 4 14 5 7 . 1 2 10 17 13 11 4 12 5 15 11 1 18 4 6 . 20 8 2 3 5 6 16 16 9 AID 73 | . . . . . . . . . . . . . . . 4 . . . . 1 4 19 5 11 . 11 . . . . . . . . 5 6 . . . . 7 Ally Attacks 5016 | . . . . 32 62 50 71 79 30 10 63 12 49 13 95 8 20 20 116 427 116 165 160 261 184 227 116 124 121 . 130 172 272 286 209 41 208 128 204 448 287 Total Damage 169780 | . . . . 408 533 930 1446 1497 420 142 1804 392 1522 338 2361 255 575 984 3322 12822 2786 5370 4239 8846 3594 6426 3019 4406 3189 . 4326 5471 7176 9116 8023 1226 5932 4931 6868 19279 25806 Kills 936 | . . . . 6 9 6 18 12 5 1 17 2 6 4 16 1 1 8 24 83 24 37 33 51 27 41 21 25 19 . 21 40 33 35 34 3 31 16 42 103 81 Allies Corrupted 72 | . . . . . . . . . . . . . 2 . . . . . . 2 3 1 2 5 3 5 4 2 . . 1 6 . 3 7 3 11 1 1 6 4 Allies Melted 11 | . . . . . . . 1 1 . . . . 1 . . . . . 1 . 1 . . 1 1 3 . . . . . . . . . . 1 . . . . Intel | -11 -10 -10 -9 -9 -9 -8 -8 -8 -8 -7 -7 -6 -6 -6 -6 -5 -5 -5 -5 -5 -5 -5 -5 -5 -5 -5 -5 -4 -4 -4 -4 -3 -3 -2 -2 -2 -2 -1 -1 -1 -1 ------- Run | Yrd Mat Min Mat Sto Gar Mat Gar Mat Gar Fac Gar Fac Gar Fac Gar Fac Was Fac Gar Fac Gar Fac Gar Fac Gar Fac Gar Fac Gar Fac Gar Res Gar Res Gar Res Gar Acc Gar Acc Com Active Infowar (turns) 18461 | 63 1471 1230 2176 1706 137 835 449 265 . 473 207 242 2 465 38 . . . . . . . . . . . . . . . . . . 139 909 389 1581 669 1856 1906 1253 Optics 9035 | . . . . . . . . 264 . 435 207 . . . . . . . . . . . . . . . . . . . . . . . 475 389 1581 669 1856 1906 1253 Sensors 1236 | . . 1 . . 137 430 . 1 . 421 2 242 2 . . . . . . . . . . . . . . . . . . . . . . . . . . . . Zeronet 571 | . . . . . . . . . . . . . . . . . . . . . . . . . . . . . . . . . . 139 432 . . . . . . Terrain 366 | . . . . . . . . . . . . . . . . . . . . . . . . . . . . . . . . . . . . . . . . 366 . Structural 90 | . . . . . . . . . . . . . . . . . . . . . . . . . . . . . . . . . . . . . . 90 . . . Seismic 7499 | 63 1471 1229 2176 1706 . 405 449 . . . . . . . . . . . . . . . . . . . . . . . . . . . . . . . . . . Cloaking 2 | . . . . . . . . . . . . . . . . . . . . . . . . . . . . . . . . . . . 2 . . . . . . Jamming 503 | . . . . . . . . . . . . . . 465 38 . . . . . . . . . . . . . . . . . . . . . . . . . . ID Mask 9 | . . . . . . . . . . . . . . . . . . . . . . . . . . . . . . . . . . . . . . . 9 . . Robot Analysis Total 101 | . 2 . . . . 1 . . . . . . . . . . . . . . . . . . . . . . . . . . . 98 . . . . . . . Derelict Logs Recovered 3 | . . 3 . . . . . . . . . . . . . . . . . . . . . . . . . . . . . . . . . . . . . . . Drone Launches . | . . . . . . . . . . . . . . . . . . . . . . . . . . . . . . . . . . . . . . . . . . Drone Recoveries . | . . . . . . . . . . . . . . . . . . . . . . . . . . . . . . . . . . . . . . . . . . Exploration | -11 -10 -10 -9 -9 -9 -8 -8 -8 -8 -7 -7 -6 -6 -6 -6 -5 -5 -5 -5 -5 -5 -5 -5 -5 -5 -5 -5 -4 -4 -4 -4 -3 -3 -2 -2 -2 -2 -1 -1 -1 -1 ------------- Run | Yrd Mat Min Mat Sto Gar Mat Gar Mat Gar Fac Gar Fac Gar Fac Gar Fac Was Fac Gar Fac Gar Fac Gar Fac Gar Fac Gar Fac Gar Fac Gar Res Gar Res Gar Res Gar Acc Gar Acc Com Turns Passed 53290 | 161 1471 1230 2766 2507 1107 1840 1717 730 588 478 1488 340 1427 599 1200 158 714 349 1984 2462 1100 1134 1654 1911 2082 1643 1603 640 1620 66 1590 379 2233 923 1742 389 1581 669 1856 1906 1253 Spaces Moved 30944 | 99 846 849 1465 1168 517 1075 997 472 380 341 911 235 967 361 791 135 528 232 1177 993 544 629 931 1224 1123 786 902 374 997 34 972 195 1232 594 1083 169 1117 304 1314 1217 664 Core 40 | 10 . . . . . . . . . . . . . . . . . . . . . . . . . . . . . . . . . . . . . . . . 30 Treads . | . . . . . . . . . . . . . . . . . . . . . . . . . . . . . . . . . . . . . . . . . . Legs 30904 | 89 846 849 1465 1168 517 1075 997 472 380 341 911 235 967 361 791 135 528 232 1177 993 544 629 931 1224 1123 786 902 374 997 34 972 195 1232 594 1083 169 1117 304 1314 1217 634 Wheels . | . . . . . . . . . . . . . . . . . . . . . . . . . . . . . . . . . . . . . . . . . . Hover . | . . . . . . . . . . . . . . . . . . . . . . . . . . . . . . . . . . . . . . . . . . Flight . | . . . . . . . . . . . . . . . . . . . . . . . . . . . . . . . . . . . . . . . . . . Fastest Speed 50 | 50 120 120 120 120 120 110 110 110 110 120 110 110 100 100 100 105 105 110 110 113 113 113 113 113 113 130 130 115 90 100 100 130 130 130 115 115 115 115 115 115 50 Average Speed 119 | 113 120 120 125 126 120 130 119 112 122 120 120 110 105 112 105 105 112 110 111 113 113 113 113 114 123 143 130 128 111 100 129 130 136 130 125 115 115 125 115 116 112 Slowest Speed 250 | 120 120 120 190 190 190 190 190 186 186 120 190 110 186 190 176 105 173 110 113 113 113 113 113 176 179 190 130 190 170 100 130 130 200 130 130 115 115 190 190 190 250 Overloaded Moves . | . . . . . . . . . . . . . . . . . . . . . . . . . . . . . . . . . . . . . . . . . . Propulsion Burnouts . | . . . . . . . . . . . . . . . . . . . . . . . . . . . . . . . . . . . . . . . . . . Robots Hopped 17 | . . . . . . . . . . . . . . . . . . . . . . . . . . . . . . . . . 4 . . . . . 13 . . Potential Cave-ins . | . . . . . . . . . . . . . . . . . . . . . . . . . . . . . . . . . . . . . . . . . . Cave-ins Triggered 1 | . . . . . . . 1 . . . . . . . . . . . . . . . . . . . . . . . . . . . . . . . . . . Exploration Rate (%) 55 | 7 98 100 93 78 65 53 88 34 56 8 94 4 90 11 92 7 96 8 95 25 48 29 94 40 92 33 94 16 96 2 94 13 99 14 92 9 98 8 95 37 19 Regions Visited 41 Branch Regions 3 Pre-discovered Areas 3 | . 2 . 1 . . . . . . . . . . . . . . . . . . . . . . . . . . . . . . . . . . . . . . Known Exits Taken 19 | . . 1 1 1 . 1 . 1 . 1 . 1 . 1 . . . 1 . 1 . 1 . 1 . 1 . 1 . 1 . 1 . 1 . 1 . 1 . . . Unknown Exits Taken 3 | 1 1 . . . . . . . . . . . . . . . . . . . . . . . . . . . . . . . . . . . . . . 1 . Scrap Searched 1 | . . 1 . . . . . . . . . . . . . . . . . . . . . . . . . . . . . . . . . . . . . . . Spaces Dug 561 | . 5 4 3 15 25 22 8 5 1 2 17 . 16 4 11 . . . 30 5 3 12 13 32 38 32 18 6 24 . 41 9 44 9 16 . 20 5 22 17 27 Terrain Destroyed 914 | . 13 5 29 29 27 28 30 5 1 2 32 . 16 4 16 . . . 30 15 3 12 14 32 38 60 33 7 84 . 44 10 87 10 48 . 24 5 32 28 61 Melee 489 | . . . . 2 21 16 8 5 1 2 16 . 16 4 8 . . . 30 4 3 12 13 30 37 21 18 3 24 . 38 9 41 7 16 . 20 5 22 13 24 Projectile 131 | . 5 5 9 27 3 . . . . . 4 . . . 8 . . . . 3 . . . 2 1 25 . 4 7 . 6 1 5 3 . . . . . 7 6 AOE 293 | . 8 . 20 . 3 12 22 . . . 12 . . . . . . . . 8 . . . . . 14 15 . 53 . . . 41 . 32 . 4 . 10 8 31 Terrain Rammed . | . . . . . . . . . . . . . . . . . . . . . . . . . . . . . . . . . . . . . . . . . . Walls Destroyed . | . . . . . . . . . . . . . . . . . . . . . . . . . . . . . . . . . . . . . . . . . . Machines Disabled . | . . . . . . . . . . . . . . . . . . . . . . . . . . . . . . . . . . . . . . . . . . Actions | -11 -10 -10 -9 -9 -9 -8 -8 -8 -8 -7 -7 -6 -6 -6 -6 -5 -5 -5 -5 -5 -5 -5 -5 -5 -5 -5 -5 -4 -4 -4 -4 -3 -3 -2 -2 -2 -2 -1 -1 -1 -1 --------- Run | Yrd Mat Min Mat Sto Gar Mat Gar Mat Gar Fac Gar Fac Gar Fac Gar Fac Was Fac Gar Fac Gar Fac Gar Fac Gar Fac Gar Fac Gar Fac Gar Res Gar Res Gar Res Gar Acc Gar Acc Com Total 43132 | 123 1198 1017 2196 1968 785 1388 1334 609 479 401 1168 312 1278 525 1064 145 633 320 1618 2243 945 942 1345 1571 1539 1124 1186 497 1379 66 1174 272 1612 694 1398 355 1362 577 1604 1584 1102 Wait 6558 | . 257 104 467 476 93 116 71 20 33 20 67 69 163 120 154 1 67 68 245 1113 285 194 183 164 136 88 74 12 179 31 32 3 129 38 183 166 88 232 149 155 313 Move 30879 | 98 845 848 1464 1167 515 1074 996 471 378 340 910 234 965 361 790 135 527 231 1176 992 543 629 930 1223 1122 785 899 373 996 33 970 194 1226 593 1082 168 1116 303 1297 1216 664 Hop 4 | . . . . . . . . . . . . . . . . . . . . . . . . . . . . . . . . . 1 . . . . . 3 . . Pick Up 406 | 8 10 7 38 12 11 19 20 14 9 8 17 1 18 2 8 1 3 3 14 6 9 4 11 5 21 17 18 11 15 1 11 3 13 1 4 2 11 5 5 4 6 Fast Attach 179 | 7 3 1 10 9 . 7 7 6 2 4 4 3 7 3 4 1 7 4 3 5 2 . 9 . 9 2 7 7 10 . 6 . 4 . 9 1 5 1 4 1 5 Attach 186 | . 1 . 14 4 2 8 16 13 3 5 7 . 10 . 5 1 1 . 2 2 2 1 3 2 10 11 6 4 14 . 2 3 4 3 5 . 5 2 3 4 8 Detach 81 | . . . 8 . 1 3 7 6 . 2 5 . 2 . 2 . 3 . . 3 . . 1 . 3 4 3 1 4 . 2 . 3 2 3 . 2 . 2 2 7 Swap 729 | . 15 8 47 59 17 43 28 17 10 3 30 1 10 10 6 . 3 4 13 31 26 14 22 40 27 53 25 16 19 . 14 6 22 4 14 2 9 8 7 39 7 Drop 451 | . 14 8 43 22 9 16 20 8 10 8 22 2 20 5 10 . 8 3 9 10 9 2 19 5 22 14 20 12 17 1 17 1 14 . 12 3 15 4 7 4 6 Fire 1926 | 10 48 18 89 106 27 68 80 42 18 8 56 2 37 16 47 4 14 7 33 73 51 63 76 35 60 115 60 55 64 . 41 39 102 28 42 8 67 14 86 82 35 Melee 1199 | . . . 6 5 110 27 61 9 6 3 40 . 36 8 30 2 . . 108 7 18 21 68 45 108 29 48 6 41 . 54 23 84 25 30 5 33 8 35 20 40 Ram . | . . . . . . . . . . . . . . . . . . . . . . . . . . . . . . . . . . . . . . . . . . Kick 77 | . 5 8 4 16 . 5 8 3 . . . . . . . . . . . 1 . 8 . 3 . 6 . . . . . . . . . . . . . 9 1 Crush . | . . . . . . . . . . . . . . . . . . . . . . . . . . . . . . . . . . . . . . . . . . Escape Stasis 216 | . . 12 5 . . . 20 . 10 . 10 . 10 . 8 . . . 15 . . . 15 . 13 . 22 . 20 . 15 . 10 . 5 . 11 . 5 . 10 Rewire 10 | . . . . . . 2 . . . . . . . . . . . . . . . . . 1 . . 4 . . . 1 . . . 1 . . . 1 . . Trap 96 | . . 3 1 92 . . . . . . . . . . . . . . . . . . . . . . . . . . . . . . . . . . . . . Miscellaneous 135 | . . . . . . . . . . . . . . . . . . . . . . 6 8 48 8 . . . . . 9 . . . 8 . . . . 48 . Route ------- -11/Scrapyard -10/Materials (discovered 6 exits: *Mat x3 / [*Min x2] / *Sub) -10/Mines (discovered 3 exits: *Mat x2 / *Sub) -9/Materials (discovered 6 exits: *Mat x3 / Min / *Sto x2) -9/Storage (discovered 3 exits: *Mat / Rec / Gar) -9/Garrison (discovered 2 exits: *Mat x2) -8/Materials (discovered 2 exits: *Fac / Gar) -8/Garrison (discovered 3 exits: *Mat x3) -8/Materials (discovered 2 exits: *Fac / Gar) -8/Garrison (discovered 3 exits: *Fac x3) -7/Factory (discovered 3 exits: Low x2 / Gar) -7/Garrison (discovered 3 exits: *Fac x3) -6/Factory -6/Garrison (discovered 3 exits: *Fac x3) -6/Factory (discovered 3 exits: Fac / [Low] / Gar) -6/Garrison (discovered 3 exits: *Fac x3) -5/Factory -5/Waste -5/Factory -5/Garrison (discovered 3 exits: *Fac x3) -5/Factory (discovered 2 exits: [*Upp] / Gar) -5/Garrison (discovered 4 exits: Fac x3 / *Fac) -5/Factory (discovered 3 exits: *Fac / [*Upp] / Gar) -5/Garrison (discovered 4 exits: *Fac x3 / *Fac) -5/Factory (discovered 2 exits: [*Ext] / Gar) -5/Garrison (discovered 4 exits: *Fac x3 / *Fac) -5/Factory (discovered 5 exits: *Fac x2 / [*Upp] / [*Ext] / Gar) -5/Garrison (discovered 3 exits: *Fac x3) -4/Factory (discovered 2 exits: *Res / Gar) -4/Garrison (discovered 3 exits: *Fac x3) -4/Factory -4/Garrison (discovered 3 exits: *Res x3) -3/Research (discovered 2 exits: *Res / Gar) -3/Garrison (discovered 3 exits: *Res x3) -2/Research -2/Garrison (discovered 4 exits: *Acc x3 / *Res) -2/Research -2/Garrison (discovered 3 exits: *Acc x3) -1/Access -1/Garrison (discovered 3 exits: [*Acc x3]) -1/Access -1/Command (discovered 2 exits: [*Sur x2]) 0b10 Command History --------- Turn | Location | Event 13 | -11/Scrapyard | Discovered new exit (range 15) 162 | -11/Scrapyard | Entered Materials 315 | -10/Materials | Build established: Mutant 331 | -10/Materials | Discovered new exit (range 11) 544 | -10/Materials | Discovered new exit (range 16) 608 | -10/Materials | Discovered new exit (range 3) 839 | -10/Materials | Discovered new exit (range 12) 949 | -10/Materials | Discovered new exit (range 3) 1052 | -10/Materials | Learned location of Storage (-9) 1119 | -10/Materials | Identified exit to Subcaves 1175 | -10/Materials | Learned Storage garrison access intel 1333 | -10/Materials | Learned location of 1 exit from Storage 1442 | -10/Materials | Learned 2 Mines zone layouts 1633 | -10/Materials | Entered Mines 1634 | -10/Mines | Identified exit to Materials 1659 | -10/Mines | Found a hidden stash of uninstalled traps 1680 | -10/Mines | Met a Derelict bent on vengeance 1886 | -10/Mines | Learned Materials trap positions 2134 | -10/Mines | Learned location of 1 exit from Materials 2153 | -10/Mines | Assembled infested the area 2784 | -10/Mines | Found a damaged Exp. Sensor Array with a note attached 2791 | -10/Mines | Found Prototype Device 2798 | -10/Mines | Discovered exit to Subcaves (range 9) 2819 | -10/Mines | Identified Exp. Sensor Array 2863 | -10/Mines | Entered Materials 2863 | -9/Materials | Evolved 2 slots: Propulsion x1, Weapon x1 2864 | -9/Materials | Identified exit to Materials 2864 | -9/Materials | Identified exit to Mines 2864 | -9/Materials | Identified exit to Storage 2866 | -9/Materials | Loaded intel: 12 trap records 3857 | -9/Materials | Build established: Scavenger-Gunner 3867 | -9/Materials | Discovered exit to Materials (range 3) 4325 | -9/Materials | Repaired Broken Exp. Sensor Array 4627 | -9/Materials | Repaired Aluminum Leg 5236 | -9/Materials | Learned Materials trap positions 5307 | -9/Materials | Learned 4 Recycling zone layouts 5420 | -9/Materials | Learned location of 1 exit from Storage 5490 | -9/Materials | Loaded intel: 12 terminal locations 5574 | -9/Materials | Learned location of Zion (-6) 5629 | -9/Materials | Entered Storage 5630 | -9/Storage | Identified exit to Recycling 5632 | -9/Storage | Loaded intel: 1 garrison access location 5732 | -9/Storage | Met a pair of Derelict thieves 6994 | -9/Storage | Garrison activated, responded to threat 7194 | -9/Storage | Assisted by bots powering up and referring to "LRC-V3" 7777 | -9/Storage | Garrison activated, responded to threat 8018 | -9/Storage | Identified exit to Garrison 8136 | -9/Storage | Entered Garrison 8136 | -9/Garrison | Accompanied by 10 allies 8178 | -9/Garrison | Core integrity fell below 50% 8225 | -9/Garrison | Installed Relay Interface Framework 8320 | -9/Garrison | Triggered checkpoint 8391 | -9/Garrison | Garrison Relay disabled 8470 | -9/Garrison | Triggered checkpoint 8476 | -9/Garrison | Triggered checkpoint 8518 | -9/Garrison | Lost 3 allies 8731 | -9/Garrison | Discovered exit to Materials (range 11) 8755 | -9/Garrison | Garrison Relay disabled 8908 | -9/Garrison | Triggered checkpoint 9182 | -9/Garrison | Expanded RIF knowledge: Threat Obfuscation 9189 | -9/Garrison | Discovered exit to Materials (range 10) 9243 | -9/Garrison | Entered Materials 9243 | -8/Materials | Accompanied by 1 ally 9243 | -8/Materials | Evolved 2 slots: Utility x2 9244 | -8/Materials | Loaded intel: 14 trap records 9574 | -8/Materials | Build established: Bothacker-Mutant 9865 | -8/Materials | Repaired Remote Datajack 9918 | -8/Materials | Repaired Hrd. Medium Armor Plating 10114 | -8/Materials | Lost 5 allies 10234 | -8/Materials | Discovered new exit (range 16) 10291 | -8/Materials | Identified exit to Garrison 10534 | -8/Materials | Build established: Mutant 11083 | -8/Materials | Entered Garrison 11083 | -8/Garrison | Accompanied by 2 allies 11103 | -8/Garrison | Garrison Relay disabled 11331 | -8/Garrison | Triggered checkpoint 11481 | -8/Garrison | Garrison Relay disabled 11569 | -8/Garrison | Triggered checkpoint 11602 | -8/Garrison | Crushed by falling debris 11613 | -8/Garrison | Triggered checkpoint 11633 | -8/Garrison | Lost 3 parts (1p2u) 11643 | -8/Garrison | Triggered checkpoint 11812 | -8/Garrison | Discovered new exit (range 10) 11877 | -8/Garrison | Triggered checkpoint 11903 | -8/Garrison | Triggered checkpoint 11936 | -8/Garrison | Lost 7 parts (1p2n2u2w) 12071 | -8/Garrison | Expanded RIF knowledge: Coupler Efficiency 12095 | -8/Garrison | Garrison Relay disabled 12117 | -8/Garrison | Garrison Relay disabled 12315 | -8/Garrison | Build established: Commander-Mutant 12339 | -8/Garrison | Triggered checkpoint 12339 | -8/Garrison | Garrison Relay disabled 12400 | -8/Garrison | Triggered checkpoint 12411 | -8/Garrison | Discovered new exit (range 15) 12593 | -8/Garrison | Garrison Relay disabled 12599 | -8/Garrison | Triggered checkpoint 12686 | -8/Garrison | Discovered new exit (range 14) 12713 | -8/Garrison | Build established: Bothacker-Mutant 12718 | -8/Garrison | Expanded RIF knowledge: Autooverride 12800 | -8/Garrison | Entered Materials 12800 | -8/Materials | Accompanied by 10 allies 12986 | -8/Materials | Repaired Remote Datajack? 13199 | -8/Materials | Discovered new exit (range 15) 13216 | -8/Materials | System corruption reached 10% 13244 | -8/Materials | Lost 6 allies 13246 | -8/Materials | Lost 3 parts (1p1n1u) 13381 | -8/Materials | Repaired Carbon-fiber Leg 13421 | -8/Materials | Repaired Imp. Aluminum Leg? 13517 | -8/Materials | Identified exit to Garrison 13530 | -8/Materials | Entered Garrison 13530 | -8/Garrison | Accompanied by 7 allies 13646 | -8/Garrison | Triggered checkpoint 13664 | -8/Garrison | P-60 Hacker assimilated allied Trooper 3g 13676 | -8/Garrison | Garrison Relay disabled 13837 | -8/Garrison | Discovered new exit (range 53) 13837 | -8/Garrison | Discovered new exit (range 31) 13837 | -8/Garrison | Discovered new exit (range 72) 13926 | -8/Garrison | Triggered checkpoint 13937 | -8/Garrison | Core integrity fell below 50% 14012 | -8/Garrison | Triggered checkpoint 14021 | -8/Garrison | Garrison Relay disabled 14044 | -8/Garrison | Expanded RIF knowledge: Autoassimilate 14118 | -8/Garrison | Entered Factory 14118 | -7/Factory | Accompanied by 6 allies 14118 | -7/Factory | Evolved 2 slots: Utility x2 14251 | -7/Factory | Repaired Carbon-fiber Leg 14374 | -7/Factory | Identified exit to Lower Caves 14435 | -7/Factory | Found Powered Armor 14438 | -7/Factory | Found Powered Armor 14440 | -7/Factory | Found Powered Armor 14577 | -7/Factory | Identified exit to Garrison 14596 | -7/Factory | Entered Garrison 14596 | -7/Garrison | Accompanied by 5 allies 14669 | -7/Garrison | Triggered checkpoint 14810 | -7/Garrison | P-60 Hacker assimilated allied Trooper 3e 14910 | -7/Garrison | Garrison Relay disabled 15017 | -7/Garrison | Triggered checkpoint 15040 | -7/Garrison | Triggered checkpoint 15056 | -7/Garrison | Triggered checkpoint 15086 | -7/Garrison | Triggered checkpoint 15152 | -7/Garrison | Triggered checkpoint 15190 | -7/Garrison | Garrison Relay disabled 15243 | -7/Garrison | Found embedded Infiltrators 15279 | -7/Garrison | Discovered new exit (range 3) 15315 | -7/Garrison | Garrison Relay disabled 15381 | -7/Garrison | Build established: Botlord-Mutant 15450 | -7/Garrison | Expanded RIF knowledge: Autoassimilate 15459 | -7/Garrison | Discovered new exit (range 13) 15500 | -7/Garrison | Triggered checkpoint 15612 | -7/Garrison | Garrison Relay disabled 15827 | -7/Garrison | Discovered new exit (range 15) 15870 | -7/Garrison | Expanded RIF knowledge: Alert ID Control 16018 | -7/Garrison | Triggered checkpoint 16024 | -7/Garrison | Garrison Relay disabled 16084 | -7/Garrison | Entered Factory 16084 | -6/Factory | Accompanied by 7 allies 16084 | -6/Factory | Evolved 2 slots: Utility x2 16310 | -6/Factory | Identified exit to Garrison 16377 | -6/Factory | Garrison activated, responded to threat 16424 | -6/Factory | Entered Garrison 16424 | -6/Garrison | Accompanied by 6 allies 16453 | -6/Garrison | Spotted Executioner 16470 | -6/Garrison | Destroyed Executioner 16562 | -6/Garrison | Triggered checkpoint 16573 | -6/Garrison | Garrison Relay disabled 16699 | -6/Garrison | Triggered checkpoint 16714 | -6/Garrison | Triggered checkpoint 16742 | -6/Garrison | Triggered checkpoint 16877 | -6/Garrison | Expanded RIF knowledge: Watcher Feeds 16896 | -6/Garrison | Triggered checkpoint 16924 | -6/Garrison | Garrison Relay disabled 17081 | -6/Garrison | Discovered new exit (range 7) 17125 | -6/Garrison | Spotted B-90 Cyclops 17238 | -6/Garrison | Discovered new exit (range 14) 17243 | -6/Garrison | Rescued a captive Derelict 17256 | -6/Garrison | Triggered checkpoint 17268 | -6/Garrison | Garrison Relay disabled 17412 | -6/Garrison | Triggered checkpoint 17444 | -6/Garrison | Garrison Relay disabled 17599 | -6/Garrison | Discovered new exit (range 10) 17723 | -6/Garrison | Spotted B-75 Beast 17762 | -6/Garrison | Allies destroyed B-75 Beast 17767 | -6/Garrison | Found Relay Coupler [Proto] 17851 | -6/Garrison | Entered Factory 17851 | -6/Factory | Accompanied by 15 allies 18014 | -6/Factory | Repaired Flexi-carbon Leg? 18325 | -6/Factory | Discovered new exit (range 83) 18325 | -6/Factory | Discovered new exit (range 80) 18450 | -6/Factory | Identified exit to Garrison 18450 | -6/Factory | Entered Garrison 18450 | -6/Garrison | Accompanied by 13 allies 18492 | -6/Garrison | Triggered checkpoint 18516 | -6/Garrison | Garrison Relay disabled 18584 | -6/Garrison | Garrison Relay disabled 18751 | -6/Garrison | Triggered checkpoint 18754 | -6/Garrison | Spotted B-75 Beast 18764 | -6/Garrison | Triggered checkpoint 18778 | -6/Garrison | P-60 Hacker assimilated allied Veteran 5a 18828 | -6/Garrison | Allies destroyed B-75 Beast 18828 | -6/Garrison | Triggered checkpoint 18861 | -6/Garrison | Triggered checkpoint 18868 | -6/Garrison | Lost 17 allies 19002 | -6/Garrison | Triggered checkpoint 19022 | -6/Garrison | Garrison Relay disabled 19049 | -6/Garrison | Discovered new exit (range 13) 19059 | -6/Garrison | Rescued a captive Derelict 19171 | -6/Garrison | Found embedded Infiltrators 19194 | -6/Garrison | Expanded RIF knowledge: Signal Jamming 19236 | -6/Garrison | Triggered checkpoint 19267 | -6/Garrison | Discovered new exit (range 12) 19293 | -6/Garrison | Garrison Relay disabled 19462 | -6/Garrison | Discovered new exit (range 12) 19484 | -6/Garrison | Triggered checkpoint 19498 | -6/Garrison | Garrison Relay disabled 19518 | -6/Garrison | Rewired Striker 19650 | -6/Garrison | Entered Factory 19650 | -5/Factory | Accompanied by 12 allies 19650 | -5/Factory | Evolved 2 slots: Utility x2 19794 | -5/Factory | Central database locked down 19808 | -5/Factory | Sucked down chute 19808 | -5/Factory | Entered Waste 19808 | -5/Waste | Met up with 1 ally sucked down the chute earlier 19809 | -5/Waste | Joined by Warlord forces that had cleared the area 19811 | -5/Waste | Found Prototype Launcher 19811 | -5/Waste | Identified Ragnarok Missile Launcher 19846 | -5/Waste | Found Prototype Processor 19846 | -5/Waste | Identified Exp. Terrain Scan Processor 20053 | -5/Waste | Discovered new exit (range 16) 20078 | -5/Waste | 9 allies followed down the chute 20113 | -5/Waste | 3 allies followed down the chute 20228 | -5/Waste | A Compactor rumbled back to life 20228 | -5/Waste | Spotted C-40 Crusher 20238 | -5/Waste | Allies destroyed C-40 Crusher 20522 | -5/Waste | Entered Factory 20522 | -5/Factory | Accompanied by 33 allies 20826 | -5/Factory | Identified exit to Garrison 20871 | -5/Factory | Entered Garrison 20871 | -5/Garrison | Accompanied by 33 allies 20871 | -5/Garrison | 1 ally did not survive the journey 20931 | -5/Garrison | Lost 5 allies 20988 | -5/Garrison | Found embedded Infiltrators 20997 | -5/Garrison | Triggered checkpoint 21017 | -5/Garrison | Garrison Relay disabled 21033 | -5/Garrison | Garrison Relay disabled 21156 | -5/Garrison | Triggered checkpoint 21164 | -5/Garrison | Triggered checkpoint 21164 | -5/Garrison | Triggered checkpoint 21203 | -5/Garrison | Lost 6 allies 21211 | -5/Garrison | Triggered checkpoint 21328 | -5/Garrison | Discovered new exit (range 12) 21369 | -5/Garrison | Triggered checkpoint 21380 | -5/Garrison | Garrison Relay disabled 21439 | -5/Garrison | Expanded RIF knowledge: Hotswap 21497 | -5/Garrison | Triggered checkpoint 21515 | -5/Garrison | Garrison Relay disabled 21549 | -5/Garrison | Discovered new exit (range 10) 21599 | -5/Garrison | Triggered checkpoint 21619 | -5/Garrison | Triggered checkpoint 21622 | -5/Garrison | Garrison Relay disabled 21718 | -5/Garrison | Expanded RIF knowledge: Code Merge 21847 | -5/Garrison | Triggered checkpoint 21874 | -5/Garrison | Garrison Relay disabled 21960 | -5/Garrison | Found Gamma Bomb Array 22058 | -5/Garrison | Garrison Relay disabled 22169 | -5/Garrison | Build established: Commander-Mutant 22251 | -5/Garrison | Discovered new exit (range 10) 22855 | -5/Garrison | Entered Factory 22855 | -5/Factory | Accompanied by 40 allies 22904 | -5/Factory | Central database locked down 23155 | -5/Factory | First assault squad dispatched 23345 | -5/Factory | Garrison activated, responded to threat 23416 | -5/Factory | Lost 14 allies 23456 | -5/Factory | Discovered new exit (range 20) 23821 | -5/Factory | P-70 Sage assimilated allied IT-MNJ(x) 23850 | -5/Factory | Lost 3 allies 23884 | -5/Factory | Cargo convoy interrupted 23913 | -5/Factory | Found Prototype Device 23913 | -5/Factory | Identified Exp. Shock Absorption System 23928 | -5/Factory | Lost 8 allies 23938 | -5/Factory | Found Prototype Hackware 24000 | -5/Factory | Lost 5 allies 24177 | -5/Factory | Build established: Botlord-Tank 24309 | -5/Factory | Lost 3 allies 24344 | -5/Factory | Identified exit to Garrison 24685 | -5/Factory | Build established: Botlord-Mutant 25317 | -5/Factory | Entered Garrison 25317 | -5/Garrison | Accompanied by 18 allies 25331 | -5/Garrison | Triggered checkpoint 25348 | -5/Garrison | Discovered new exit (range 6) 25474 | -5/Garrison | Garrison Relay disabled 25517 | -5/Garrison | Identified Exp. System Shield 25519 | -5/Garrison | Discovered new exit (range 74) 25519 | -5/Garrison | Discovered new exit (range 73) 25519 | -5/Garrison | Discovered new exit (range 45) 25519 | -5/Garrison | Discovered new exit (range 19) 25525 | -5/Garrison | Triggered checkpoint 25634 | -5/Garrison | P-70 Sage assimilated allied Smith 6b 25671 | -5/Garrison | Triggered checkpoint 25693 | -5/Garrison | Lost 12 allies 25701 | -5/Garrison | Triggered checkpoint 25723 | -5/Garrison | Expanded RIF knowledge: Coupler Efficiency 25791 | -5/Garrison | Triggered checkpoint 25837 | -5/Garrison | Lost 3 allies 26083 | -5/Garrison | Garrison Relay disabled 26417 | -5/Garrison | Entered Factory 26417 | -5/Factory | Accompanied by 13 allies 26655 | -5/Factory | Discovered new exit (range 34) 26678 | -5/Factory | Discovered new exit (range 22) 26760 | -5/Factory | Lost 4 allies 26885 | -5/Factory | P-70 Sage assimilated allied Sentinel 6r 26915 | -5/Factory | Lost 3 allies 26920 | -5/Factory | Build established: Botlord-Tank 27094 | -5/Factory | Identified exit to Garrison 27420 | -5/Factory | P-70 Sage assimilated allied Soldier 6t 27549 | -5/Factory | Identified exit to Garrison 27551 | -5/Factory | Entered Garrison 27551 | -5/Garrison | Accompanied by 8 allies 27553 | -5/Garrison | Triggered checkpoint 27624 | -5/Garrison | Triggered checkpoint 27635 | -5/Garrison | Triggered checkpoint 27660 | -5/Garrison | Garrison Relay disabled 27679 | -5/Garrison | Lost 3 allies 27784 | -5/Garrison | Spotted Striker 27799 | -5/Garrison | Rewired Striker 27801 | -5/Garrison | Rewired Striker 27808 | -5/Garrison | Allies destroyed Striker 27853 | -5/Garrison | Build established: Botlord-Mutant 27982 | -5/Garrison | Triggered checkpoint 27986 | -5/Garrison | Spotted B-75 Beast 27986 | -5/Garrison | Triggered checkpoint 27988 | -5/Garrison | Assimilated Beast 6a with formatsys_high 27990 | -5/Garrison | Triggered checkpoint 28042 | -5/Garrison | Lost 9 allies 28065 | -5/Garrison | Triggered checkpoint 28084 | -5/Garrison | Expanded RIF knowledge: Autooverride 28097 | -5/Garrison | Garrison Relay disabled 28195 | -5/Garrison | Discovered new exit (range 12) 28223 | -5/Garrison | Triggered checkpoint 28279 | -5/Garrison | Garrison Relay disabled 28346 | -5/Garrison | Lost 5 allies 28550 | -5/Garrison | Garrison Relay disabled 28563 | -5/Garrison | Triggered checkpoint 28661 | -5/Garrison | Discovered new exit (range 3) 28905 | -5/Garrison | Rescued a captive Derelict 28907 | -5/Garrison | Rescued a captive Derelict 28928 | -5/Garrison | Garrison Relay disabled 28972 | -5/Garrison | Discovered new exit (range 12) 29005 | -5/Garrison | Triggered checkpoint 29021 | -5/Garrison | Discovered new exit (range 6) 29205 | -5/Garrison | Entered Factory 29205 | -5/Factory | Accompanied by 22 allies 29424 | -5/Factory | Spotted B-75 Beast 29425 | -5/Factory | Autoassimilated Beast 6b with RIF 29553 | -5/Factory | Allied Derelicts emerged from ambush trap array 30010 | -5/Factory | Assimilated Heavy ARC 6a with formatsys_deep 30077 | -5/Factory | Lost 5 allies 30329 | -5/Factory | Build established: Commander-Mutant 30361 | -5/Factory | Identified exit to Garrison 30435 | -5/Factory | Garrison activated, responded to threat 30475 | -5/Factory | P-70 Sage assimilated allied Sentinel 6*28 30520 | -5/Factory | Lost 9 allies 30598 | -5/Factory | Lost 6 allies 30767 | -5/Factory | Build established: Botlord-Mutant 30786 | -5/Factory | Discovered new exit (range 6) 31084 | -5/Factory | Identified exit to Garrison 31116 | -5/Factory | Entered Garrison 31116 | -5/Garrison | Accompanied by 12 allies 31134 | -5/Garrison | Triggered checkpoint 31143 | -5/Garrison | Discovered new exit (range 6) 31300 | -5/Garrison | Triggered checkpoint 31309 | -5/Garrison | Garrison Relay disabled 31444 | -5/Garrison | Lost 4 allies 31521 | -5/Garrison | Spotted B-75 Beast 31536 | -5/Garrison | System corruption reached 10% 31547 | -5/Garrison | Destroyed B-75 Beast 31562 | -5/Garrison | Triggered checkpoint 31566 | -5/Garrison | Lost 4 parts (4u) 31618 | -5/Garrison | Triggered checkpoint 31620 | -5/Garrison | Lost 13 allies 31844 | -5/Garrison | Triggered checkpoint 31966 | -5/Garrison | Triggered checkpoint 31973 | -5/Garrison | Garrison Relay disabled 31992 | -5/Garrison | Expanded RIF knowledge: Coupler Efficiency 32158 | -5/Garrison | Discovered new exit (range 13) 32347 | -5/Garrison | Triggered checkpoint 32450 | -5/Garrison | Spotted B-75 Beast 32522 | -5/Garrison | Triggered checkpoint 32570 | -5/Garrison | Rescued a captive Derelict 32596 | -5/Garrison | Garrison Relay disabled 32631 | -5/Garrison | Discovered new exit (range 10) 32800 | -5/Garrison | Triggered checkpoint 32823 | -5/Garrison | Found embedded Infiltrators 32830 | -5/Garrison | Garrison Relay disabled 32904 | -5/Garrison | Discovered new exit (range 14) 33198 | -5/Garrison | Entered Factory 33198 | -5/Factory | Accompanied by 14 allies 33351 | -5/Factory | Unchained authorized (GL-D0S) 33448 | -5/Factory | Discovered new exit (range 5) 33653 | -5/Factory | Lost 7 allies 33823 | -5/Factory | Lost 9 allies 33890 | -5/Factory | Discovered new exit (range 13) 34084 | -5/Factory | Build established: Botlord-Tank 34129 | -5/Factory | Discovered new exit (range 32) 34210 | -5/Factory | Cargo convoy interrupted 34310 | -5/Factory | Discovered new exit (range 15) 34640 | -5/Factory | Lost 4 allies 34652 | -5/Factory | Identified exit to Garrison 34841 | -5/Factory | Entered Garrison 34841 | -5/Garrison | Accompanied by 2 allies 34871 | -5/Garrison | Triggered checkpoint 34909 | -5/Garrison | Triggered checkpoint 34922 | -5/Garrison | Garrison Relay disabled 35073 | -5/Garrison | P-70 Sage assimilated allied Sentinel 6*36 35410 | -5/Garrison | Garrison Relay disabled 35415 | -5/Garrison | Triggered checkpoint 35473 | -5/Garrison | Triggered checkpoint 35487 | -5/Garrison | P-70 Sage assimilated allied Sentinel 6*38 35530 | -5/Garrison | Destroyed 10 combat bots 35537 | -5/Garrison | Lost 8 allies 35593 | -5/Garrison | Triggered checkpoint 35624 | -5/Garrison | Garrison Relay disabled 35673 | -5/Garrison | Discovered new exit (range 10) 35737 | -5/Garrison | Triggered checkpoint 35823 | -5/Garrison | Expanded RIF knowledge: Command Fork 35830 | -5/Garrison | Build established: Botlord-Mutant 35854 | -5/Garrison | Triggered checkpoint 35865 | -5/Garrison | Garrison Relay disabled 35897 | -5/Garrison | Spotted Striker 35898 | -5/Garrison | Spotted Striker 35944 | -5/Garrison | Discovered new exit (range 5) 36069 | -5/Garrison | Triggered checkpoint 36138 | -5/Garrison | Phase Generator disabled 36161 | -5/Garrison | Discovered new exit (range 13) 36169 | -5/Garrison | Lost 6 allies 36183 | -5/Garrison | Triggered checkpoint 36215 | -5/Garrison | Garrison Relay disabled 36261 | -5/Garrison | Found embedded Infiltrators 36302 | -5/Garrison | Garrison Relay disabled 36389 | -5/Garrison | Expanded RIF knowledge: Autooverride 36444 | -5/Garrison | Entered Factory 36444 | -4/Factory | Accompanied by 11 allies 36444 | -4/Factory | Evolved 2 slots: Utility x2 36589 | -4/Factory | Lost 3 allies 36616 | -4/Factory | Found Unknown Device 36616 | -4/Factory | Identified Quantum Capacitor 36727 | -4/Factory | Spotted B-86 Titan 36731 | -4/Factory | Spotted B-86 Titan 36734 | -4/Factory | Assimilated Titan 7a with formatsys_high 36735 | -4/Factory | Assimilated Titan 7b with formatsys_high 36748 | -4/Factory | Lost 4 allies 36870 | -4/Factory | P-70 Sage assimilated allied Sentinel 6*39 36914 | -4/Factory | Discovered new exit (range 6) 36977 | -4/Factory | Lost 12 allies 37069 | -4/Factory | Identified exit to Garrison 37084 | -4/Factory | Entered Garrison 37084 | -4/Garrison | Accompanied by 3 allies 37101 | -4/Garrison | Expanded RIF knowledge: Robot Detection 37167 | -4/Garrison | Destroyed 10 combat bots 37178 | -4/Garrison | Triggered checkpoint 37182 | -4/Garrison | Build established: Botlord-Tank 37186 | -4/Garrison | Garrison Relay disabled 37357 | -4/Garrison | P-70 Sage assimilated allied Sentinel 7c 37358 | -4/Garrison | Triggered checkpoint 37436 | -4/Garrison | P-70 Sage assimilated allied Veteran 7o 37436 | -4/Garrison | P-70 Sage assimilated allied Veteran 7j 37485 | -4/Garrison | Build established: Botlord-Mutant 37578 | -4/Garrison | Discovered new exit (range 4) 37594 | -4/Garrison | Lost 11 allies 37651 | -4/Garrison | Garrison Relay disabled 37836 | -4/Garrison | Discovered new exit (range 9) 37897 | -4/Garrison | Garrison Relay disabled 38142 | -4/Garrison | Discovered new exit (range 10) 38158 | -4/Garrison | Triggered checkpoint 38181 | -4/Garrison | Garrison Relay disabled 38252 | -4/Garrison | Spotted B-86 Titan 38257 | -4/Garrison | Assimilated Titan 7c with formatsys_high 38704 | -4/Garrison | Entered Factory 38704 | -4/Factory | Accompanied by 16 allies 38749 | -4/Factory | Identified exit to Garrison 38770 | -4/Factory | Entered Garrison 38770 | -4/Garrison | Accompanied by 16 allies 38792 | -4/Garrison | Triggered checkpoint 38801 | -4/Garrison | Garrison Relay disabled 38942 | -4/Garrison | Triggered checkpoint 38961 | -4/Garrison | Spotted B-86 Titan 38983 | -4/Garrison | Triggered checkpoint 39003 | -4/Garrison | System corruption reached 10% 39025 | -4/Garrison | Lost 7 allies 39027 | -4/Garrison | Triggered checkpoint 39036 | -4/Garrison | Triggered checkpoint 39269 | -4/Garrison | Garrison Relay disabled 39288 | -4/Garrison | Triggered checkpoint 39314 | -4/Garrison | Discovered new exit (range 12) 39405 | -4/Garrison | Phase Generator disabled 39624 | -4/Garrison | Spotted B-86 Titan 39640 | -4/Garrison | Discovered new exit (range 13) 39650 | -4/Garrison | Destroyed B-86 Titan 39748 | -4/Garrison | Triggered checkpoint 39766 | -4/Garrison | Garrison Relay disabled 39822 | -4/Garrison | Found embedded Infiltrators 39968 | -4/Garrison | Triggered checkpoint 39986 | -4/Garrison | Expanded RIF knowledge: Zone Cloak 39998 | -4/Garrison | Garrison Relay disabled 40099 | -4/Garrison | Discovered new exit (range 10) 40123 | -4/Garrison | P-70 Sage assimilated allied 01-KVN(x) 40360 | -4/Garrison | Entered Research 40360 | -3/Research | Accompanied by 21 allies 40360 | -3/Research | Evolved 2 slots: Utility x2 40414 | -3/Research | Found Com. Tesla Bomb Launcher 40537 | -3/Research | Garrison activated, responded to threat 40546 | -3/Research | Unchained authorized (CL-0N3) 40585 | -3/Research | Discovered new exit (range 18) 40661 | -3/Research | Lost 9 allies 40701 | -3/Research | Garrison activated, responded to threat 40727 | -3/Research | Cargo convoy interrupted 40737 | -3/Research | Identified exit to Garrison 40739 | -3/Research | Entered Garrison 40739 | -3/Garrison | Accompanied by 8 allies 40747 | -3/Garrison | Lost 11 allies 40783 | -3/Garrison | Triggered checkpoint 40807 | -3/Garrison | Garrison Relay disabled 40916 | -3/Garrison | P-80 Master assimilated allied XZ-HVC(x) 41335 | -3/Garrison | Triggered checkpoint 41336 | -3/Garrison | Triggered checkpoint 41339 | -3/Garrison | Spotted B-86 Titan 41344 | -3/Garrison | Triggered checkpoint 41346 | -3/Garrison | Triggered checkpoint 41392 | -3/Garrison | Lost 6 allies 41431 | -3/Garrison | Discovered new exit (range 11) 41504 | -3/Garrison | Lost 4 allies 41615 | -3/Garrison | Expanded RIF knowledge: Structural Interface 41733 | -3/Garrison | Triggered checkpoint 41733 | -3/Garrison | Garrison Relay disabled 41751 | -3/Garrison | Triggered checkpoint 41791 | -3/Garrison | Spotted Striker 41791 | -3/Garrison | Spotted Striker 41823 | -3/Garrison | Rewired Striker 41828 | -3/Garrison | Rewired Striker 41835 | -3/Garrison | Allies destroyed Striker 41852 | -3/Garrison | Allies destroyed Striker 42017 | -3/Garrison | Garrison Relay disabled 42025 | -3/Garrison | Triggered checkpoint 42029 | -3/Garrison | Assimilated Heavy ARC 8a with formatsys_deep 42067 | -3/Garrison | Rescued a captive Derelict 42074 | -3/Garrison | Rescued a captive Derelict 42090 | -3/Garrison | Discovered new exit (range 15) 42188 | -3/Garrison | Discovered new exit (range 10) 42197 | -3/Garrison | Triggered checkpoint 42223 | -3/Garrison | Triggered checkpoint 42238 | -3/Garrison | Garrison Relay disabled 42255 | -3/Garrison | Garrison Relay disabled 42296 | -3/Garrison | Garrison Relay disabled 42305 | -3/Garrison | Lost 7 allies 42364 | -3/Garrison | H-XX Assembler disabled 42940 | -3/Garrison | Build established: Commander-Mutant 42972 | -3/Garrison | Entered Research 42972 | -2/Research | Accompanied by 34 allies 42972 | -2/Research | Evolved 2 slots: Utility x2 43197 | -2/Research | Unchained authorized (CL-0N3) 43201 | -2/Research | Identified exit to Garrison 43425 | -2/Research | Lost 4 allies 43440 | -2/Research | K-01 Serf reconstituted as V2 43440 | -2/Research | Spotted V2 43440 | -2/Research | Allies destroyed V2 43440 | -2/Research | V2 reconstituted as CL-0N3 43512 | -2/Research | P-80 Master assimilated hostile B-74 Champion 43634 | -2/Research | Spotted B-90 Cyclops 43741 | -2/Research | Allies destroyed CL-0N3 43752 | -2/Research | Extracted schematics, analyses from CL-0N3's data core 43755 | -2/Research | Found Prototype Device 43756 | -2/Research | Identified Zeronet Interface 43769 | -2/Research | Assimilated ARC 9a with formatsys_deep 43792 | -2/Research | Lost 3 allies 43839 | -2/Research | Identified exit to Garrison 43895 | -2/Research | Entered Garrison 43895 | -2/Garrison | Accompanied by 26 allies 44025 | -2/Garrison | Build established: Botlord-Mutant 44026 | -2/Garrison | Found Unknown Device 44026 | -2/Garrison | Identified Adv. Force Booster 44049 | -2/Garrison | P-80 Master assimilated allied Terminator 9d 44056 | -2/Garrison | Lost 8 allies 44080 | -2/Garrison | Triggered checkpoint 44086 | -2/Garrison | Garrison Relay disabled 44148 | -2/Garrison | P-80 Master assimilated allied Enforcer 9c 44156 | -2/Garrison | Triggered checkpoint 44168 | -2/Garrison | Spotted B-90 Cyclops 44182 | -2/Garrison | Triggered checkpoint 44183 | -2/Garrison | Triggered checkpoint 44194 | -2/Garrison | Allies destroyed B-90 Cyclops 44227 | -2/Garrison | Triggered checkpoint 44235 | -2/Garrison | Lost 3 allies 44293 | -2/Garrison | Garrison Relay disabled 44306 | -2/Garrison | Triggered checkpoint 44342 | -2/Garrison | Discovered new exit (range 15) 44592 | -2/Garrison | Discovered new exit (range 13) 44596 | -2/Garrison | Triggered checkpoint 44623 | -2/Garrison | Discovered new exit (range 5) 44683 | -2/Garrison | Triggered checkpoint 44747 | -2/Garrison | Expanded RIF knowledge: Zone Cloak 44787 | -2/Garrison | Garrison Relay disabled 44961 | -2/Garrison | Garrison Relay disabled 44965 | -2/Garrison | Triggered checkpoint 45071 | -2/Garrison | Spotted Striker 45077 | -2/Garrison | Spotted Executioner 45087 | -2/Garrison | Allies destroyed Executioner 45093 | -2/Garrison | Allies destroyed Striker 45147 | -2/Garrison | Found Prototype Device 45147 | -2/Garrison | Identified Exp. Cloaking Device 45151 | -2/Garrison | Found Prototype Device 45151 | -2/Garrison | Identified Exp. Focal Shield 45173 | -2/Garrison | Found Prototype Energy Cannon 45173 | -2/Garrison | Identified Exp. Thermic Cannon 45267 | -2/Garrison | Learned Access security intel 45305 | -2/Garrison | Discovered new exit (range 3) 45637 | -2/Garrison | Entered Research 45637 | -2/Research | Accompanied by 26 allies 45755 | -2/Research | Spotted B-90 Cyclops 45777 | -2/Research | Assimilated Cyclops 9a with formatsys_high 45814 | -2/Research | Unchained authorized (DW-4LL) 45827 | -2/Research | Garrison activated, responded to threat 45878 | -2/Research | Identified exit to Garrison 46026 | -2/Research | Entered Garrison 46026 | -2/Garrison | Accompanied by 25 allies 46154 | -2/Garrison | Lost 10 allies 46202 | -2/Garrison | Triggered checkpoint 46212 | -2/Garrison | Triggered checkpoint 46220 | -2/Garrison | Triggered checkpoint 46235 | -2/Garrison | Garrison Relay disabled 46283 | -2/Garrison | Spotted B-90 Cyclops 46295 | -2/Garrison | System corruption reached 10% 46300 | -2/Garrison | Triggered checkpoint 46335 | -2/Garrison | Allies destroyed B-90 Cyclops 46362 | -2/Garrison | Lost 19 allies 46420 | -2/Garrison | Discovered new exit (range 22) 46443 | -2/Garrison | Lost 4 allies 46452 | -2/Garrison | Triggered checkpoint 46472 | -2/Garrison | Garrison Relay disabled 46510 | -2/Garrison | Spotted B-90 Cyclops 46510 | -2/Garrison | Spotted B-90 Cyclops 46546 | -2/Garrison | Assimilated Cyclops 9b with formatsys_high 46548 | -2/Garrison | Assimilated Cyclops 9c with formatsys_high 46655 | -2/Garrison | Garrison Relay disabled 46666 | -2/Garrison | Triggered checkpoint 46745 | -2/Garrison | Triggered checkpoint 46768 | -2/Garrison | Triggered checkpoint 46802 | -2/Garrison | Lost 3 allies 46833 | -2/Garrison | Garrison Relay disabled 46848 | -2/Garrison | Triggered checkpoint 46869 | -2/Garrison | Expanded RIF knowledge: Command Fork 46888 | -2/Garrison | Discovered new exit (range 17) 46988 | -2/Garrison | Garrison Relay disabled 47004 | -2/Garrison | Triggered checkpoint 47006 | -2/Garrison | Assimilated Heavy ARC 9a with formatsys_deep 47028 | -2/Garrison | Discovered new exit (range 15) 47349 | -2/Garrison | Found Relay Coupler [Proto] 47352 | -2/Garrison | Found Relay Coupler [Proto] 47607 | -2/Garrison | Entered Access 47607 | -1/Access | Accompanied by 23 allies 47607 | -1/Access | Evolved 2 slots: Utility x2 47792 | -1/Access | Unchained authorized (DW-4LL) 47876 | -1/Access | Lost 3 allies 48120 | -1/Access | DW-4LL burst out of a wall 48135 | -1/Access | Allies destroyed DW-4LL 48146 | -1/Access | Found Exp. Weapon Cycler 48155 | -1/Access | Found ID Mask 48159 | -1/Access | Lost 4 allies 48209 | -1/Access | Garrison activated, responded to threat 48243 | -1/Access | Identified exit to Garrison 48247 | -1/Access | Spotted B-99 Colossus 48276 | -1/Access | Entered Garrison 48276 | -1/Garrison | Accompanied by 12 allies 48281 | -1/Garrison | Lost 6 allies 48418 | -1/Garrison | Triggered checkpoint 48420 | -1/Garrison | Triggered checkpoint 48426 | -1/Garrison | Spotted B-99 Colossus 48426 | -1/Garrison | Assimilated Colossus 10a with formatsys_high 48456 | -1/Garrison | Triggered checkpoint 48489 | -1/Garrison | Lost 15 allies 48495 | -1/Garrison | Triggered checkpoint 48507 | -1/Garrison | Garrison Relay disabled 48598 | -1/Garrison | Garrison Relay disabled 48606 | -1/Garrison | Lost 3 allies 48728 | -1/Garrison | ID Mask engaged 48868 | -1/Garrison | Triggered checkpoint 48868 | -1/Garrison | Discovered new exit (range 14) 48913 | -1/Garrison | Warlord forces raided the area 48939 | -1/Garrison | Triggered checkpoint 48943 | -1/Garrison | Garrison Relay disabled 48946 | -1/Garrison | Triggered checkpoint 49087 | -1/Garrison | Expanded RIF knowledge: Crosswire 49093 | -1/Garrison | Discovered new exit (range 11) 49122 | -1/Garrison | Triggered checkpoint 49126 | -1/Garrison | Triggered checkpoint 49145 | -1/Garrison | Garrison Relay disabled 49250 | -1/Garrison | Garrison Relay disabled 49338 | -1/Garrison | Triggered checkpoint 49340 | -1/Garrison | Triggered checkpoint 49348 | -1/Garrison | Triggered checkpoint 49354 | -1/Garrison | Discovered new exit (range 16) 49371 | -1/Garrison | Lost 3 allies 49580 | -1/Garrison | Garrison Relay disabled 49651 | -1/Garrison | Garrison Relay disabled 49754 | -1/Garrison | Build established: Commander-Mutant 50132 | -1/Garrison | Entered Access 50132 | -1/Access | Accompanied by 51 allies 50288 | -1/Access | Garrison activated, responded to threat 50340 | -1/Access | Lost 4 allies 50377 | -1/Access | Assimilated Heavy ARC 10a with formatsys_deep 50417 | -1/Access | Lost 5 allies 51127 | -1/Access | Garrison activated, responded to threat 51174 | -1/Access | Spotted B-99 Colossus 51178 | -1/Access | Assimilated Colossus 10b with formatsys_high 51199 | -1/Access | Spotted B-99 Colossus 51203 | -1/Access | Lost 14 allies 51300 | -1/Access | P-80 Master assimilated allied Enforcer 10l 51527 | -1/Access | Lost 4 allies 51691 | -1/Access | Discovered new exit (range 7) 51726 | -1/Access | Spotted B-99 Colossus 51726 | -1/Access | Spotted B-99 Colossus 51728 | -1/Access | Assimilated Colossus 10c with formatsys_high 52038 | -1/Access | Entered Command 52038 | -1/Command | Accompanied by 39 allies 52277 | -1/Command | Spotted Alpha 7 52278 | -1/Command | Autoassimilated Alpha 7 with RIF 52306 | -1/Command | Lost 3 allies 52336 | -1/Command | Build established: Botlord-Mutant 52364 | -1/Command | Spotted M Guard 52366 | -1/Command | Spotted M Guard 52366 | -1/Command | Spotted Combat Programmer 52413 | -1/Command | Spotted Combat Programmer 52427 | -1/Command | System corruption reached 10% 52429 | -1/Command | Destroyed Combat Programmer 52443 | -1/Command | Allies destroyed Combat Programmer 52447 | -1/Command | Assimilated M Guard with formatsys_high 52447 | -1/Command | Assimilated M Guard with formatsys_high 52475 | -1/Command | Lost 4 parts (2u2w) 52476 | -1/Command | Lost 19 allies 52708 | -1/Command | Spotted Alpha 7 52709 | -1/Command | Autoassimilated Alpha 7 with RIF 52709 | -1/Command | Spotted Striker 52709 | -1/Command | Spotted Striker 52709 | -1/Command | Spotted Executioner 52709 | -1/Command | Spotted Executioner 52709 | -1/Command | Spotted Executioner 52709 | -1/Command | Spotted Executioner 52710 | -1/Command | Autoassimilated Executioner with RIF 52710 | -1/Command | Autoassimilated Executioner with RIF 52710 | -1/Command | Spotted B-99 Colossus 52710 | -1/Command | Spotted B-99 Colossus 52711 | -1/Command | Assimilated Colossus 10d with formatsys_high 52711 | -1/Command | Assimilated Colossus 10e with formatsys_high 52725 | -1/Command | Discovered new exit (range 16) 52726 | -1/Command | Allies destroyed Striker 52726 | -1/Command | Allies destroyed Striker 52729 | -1/Command | Assimilated Executioner with formatsys_high 52733 | -1/Command | Allies destroyed Executioner 53140 | -1/Command | Met MAIN.C 53226 | -1/Command | Allies destroyed MAIN.C Shell 53227 | -1/Command | MAIN.C activated Command garrisons 53263 | -1/Command | P-80 Master assimilated allied L-61 Swordsman 53274 | -1/Command | Allies destroyed MAIN.C 53277 | -1/Command | Discovered new exit (range 59) 53277 | -1/Command | Discovered new exit (range 75) 53277 | -1/Command | Extracted map data and part IDs from MAIN.C's data core 53291 | -1/Command | Interfaced with 0b10 Conduit 53291 | *** | Assimilated 0b10! Last Messages --------------- 53272_ Slug penetrates Reinforced Barrier. 53272_ Destroyed Prototype Ballistic Gun. 53274_ MAIN.C: "I hope you know you're still going to DIE HERE WITH ME!" 53274_ MAIN.C destroyed. 53275_ Slug penetrates H-88 Terminator. 53275_ H-88 Terminator suffers critical hit (Destroy). 53275_ H-88 Terminator destroyed. 53276_ Discarded Hyb. Antimatter Reactor+. 53276_ Dropped Plasma Lance. 53277_ EXIT=FOUND 53277_ Acquired data core, extracted map data and part IDs. 53277_ Acquired 2 matter. 53278_ L-61 Swordsman destroyed. 53287_ System corrupted: Component data lost. 53291_ Interfacing with system... [Achievement: 75k Club] [Achievement: 100k Club] Map ----- +----------------------------------------------------+ | #?????????????????????????????????#?#?#??? | | #?????????????????????????????????#?#?#??? | | # ### #?????????????????????????????????#?#?#??? | | # #?# #?????????????????????????????????#?#?#??? | | #+### #?????????????????????????????????#?#?#??? | | # #?????????????????????????????????#?#?#??? | | # #?????????????????????????????????#?#?#??? | | # #?????????????????????????????????#?#?#??? | | # ########################################## | | # ########################################## | | # ########################################## | | + ########################################## | | # ########################################## | | ##### ########################################## | | #### #####""""""" """" ############### | | #### T" #####"" "" ############### | | #### "" #####""""" "" ############### | | #### #####""""""""""" + | | #### #####" " """ ; | | ##### ######"" """""" / | | ##### #####"" """""" ############### | | ##### ##### " """""" ############### | | # ##### " "" ############### | | # ##### " " ""############### | | # #####""""""""" """""""############### | | # #####"" @"""""""""############### | | + ##### """""""""""############### | | # ##### " " " " ############### | | ##### ##### " " " " ############### | | ##### " " " """" " ############### | | ##### """ " " """" ############### | | ##### " " " " ############### | | #######+###### """""""""" " ############### | | / ##### " """ " """"""""############### | | ## ##### """ " " " ############### | | ## ######################################### | | ## ######################################### | | ## ######################################### | | ## ######################################### | | ################################################# | | ################################################# | | ################################################# | | ################################################# | | #????????????????????????????????????????#?#?#??? | | #????????????????????????????????????????#?#?#??? | | #????????????????????????????????????????#?#?#??? | | #????????????????????????????????????????#?#?#??? | | #################????????????????????????#?#?#??? | | #????????????????????????#?#?#??? | | T#????????????????????????#?#?#??? | +----------------------------------------------------+ Best States ------------- Heat Dissipation 67 Coolant Potential 100 Energy Generation 18 Energy Capacity 1100 Matter Stores 500 Matter Capacity 500 Sight Range 23 Robot Scan Range 20 Terrain Scan Range 24 Terrain Scan Density 10 Jamming Range 12 Additional Mass Support 12 Corruption Containment 8 Corruption Block 15 Armor Coverage 400 Resistance: TH 15 Resistance: EX 75 Resistance: EM 25 Propulsion Shielding 66 Utility Shielding 66 Point Defense Rating 480 Weapon Cycling 30 Phase Shifting 15 Evasion (%) 99 Launcher Accuracy 40 Target Analysis 5 Core Analysis 6 Offensive Hacking 10 Defensive Hacking 16 Relay Coupler Types 12 Relay Coupler Value 882 Trap Extractor Capacity 4 Item Schematics ----------------- Hcp. Storage Unit | -10/Materials | Hacked Exp. Sensor Array | -9/Materials | Scanalyzed Gamma Bomb Array | -5/Factory | Scanalyzed Robot Schematics ------------------ K-01 Serf | -2/Research | Archive T-07 Excavator | -2/Research | Archive A-02 Transporter | -2/Research | Archive A-15 Conveyor | -2/Research | Archive R-06 Scavenger | -2/Research | Archive R-10 Processor | -2/Research | Archive M-14 Sweeper | -2/Research | Archive M-22 Extractor | -2/Research | Archive M-30 Cleanser | -2/Research | Archive M-13 Machinist | -2/Research | Archive M-28 Smith | -2/Research | Archive M-36 Artificer | -2/Research | Archive O-16 Technician | -2/Research | Archive O-24 Administrator | -2/Research | Archive O-32 Director | -2/Research | Archive W-16 Scout | -2/Research | Archive W-25 Informer | -2/Research | Archive W-44 Eye | -2/Research | Archive S-10 Pest | -2/Research | Archive S-27 Virus | -2/Research | Archive S-43 Plague | -2/Research | Archive G-34 Mercenary | -2/Research | Archive G-47 Trooper | -2/Research | Archive G-50 Soldier | -2/Research | Archive G-67 Veteran | -2/Research | Archive G-73 Enforcer | -2/Research | Archive B-36 Bruiser | -2/Research | Archive B-48 Gladiator | -2/Research | Archive B-60 Warrior | -2/Research | Archive B-74 Champion | -2/Research | Archive L-31 Rogue | -2/Research | Archive L-41 Fighter | -2/Research | Archive L-61 Swordsman | -2/Research | Archive Y-45 Defender | -2/Research | Archive Y-54 Guardian | -2/Research | Archive Y-64 Sentinel | -2/Research | Archive Y-72 Warden | -2/Research | Archive D-53 Grenadier | -2/Research | Archive D-63 Destroyer | -2/Research | Archive D-83 Annihilator | -2/Research | Archive X-57 Shotgunner | -2/Research | Archive X-62 Marksman | -2/Research | Archive X-67 Chaingunner | -2/Research | Archive X-72 Disruptor | -2/Research | Archive X-77 Beamer | -2/Research | Archive X-82 Rainmaker | -2/Research | Archive X-87 Electro | -2/Research | Archive H-55 Commando | -2/Research | Archive H-66 Slayer | -2/Research | Archive H-77 Assassin | -2/Research | Archive H-88 Terminator | -2/Research | Archive P-60 Hacker | -2/Research | Archive P-70 Sage | -2/Research | Archive P-80 Master | -2/Research | Archive Fabricated ------------ Nothing Repaired ---------- Exp. Sensor Array | 62% | -9/Materials | Broken Aluminum Leg | 17% | -9/Materials Remote Datajack | 28% | -8/Materials Hrd. Medium Armor Plating | 34% | -8/Materials Remote Datajack | 21% | -8/Materials Carbon-fiber Leg | 29% | -8/Materials Imp. Aluminum Leg | 50% | -8/Materials Carbon-fiber Leg | 71% | -7/Factory Flexi-carbon Leg | 51% | -6/Factory Studied --------- Hvy. Assault Rifle | -9/Materials | Hacked Flexi-carbon Leg | -6/Factory | Hacked Imp. Arc Projector | -5/Factory | Hacked Hyb. Antimatter Reactor | -5/Factory | Hacked Imp. Remote Datajack | -5/Factory | Hacked Adv. Remote Datajack | -5/Factory | Hacked Alien Tech Used ----------------- None Achievements -------------- 100k Club 75k Club Deep Understanding Fancy Inventory Hack Snack Hackerman Oppo Buddy Powerful Protocols RIFT Wizard Satisfying Sprinter The Better Part Of Valor Versatile Watcher Gambling Zeroed Repercussions Challenges ------------ None Game ------ Seed VampiricEnergyMace Manual? 0 Play Time 30:35:59 Cumulative 590.4 hours Start 2025.11.01 @ 14:28:14 End 2025.11.12 @ 20:24:30 Sessions 37 Manual Loads 0 Difficulty Rogue Special Mode None Game No. 62 Rogue 59 Adventurer 3 Explorer 0 Win Type 4 Total 20 Types 9/1/4/2/1/0/1/1/1/0 Lore% 81 Gallery% 84 Achievement% 72 Wizard Run 0 Options --------- Layout 1 ASCII 0 Keyboard 0 Movement Numpad Keybinds 0 Fullscreen 1 Font 24/Smallcaps Map View 50x35 Zoom Use 0% Tactical HUD 1 Map Filters NONE Filters NONE Steam 1 RUN: 9c7c47a7-7413-4887-a05a-8dbbe7331283